Workbook

Sheet CO2 FUNCTIONS
B1: Physical Properties for Carbon Dioxide
B2: Tohoku University, Version 3.4 (CO2v34.bas) | F2: For Educational Use Only!
B3: Report errors to R. L. Smith; Email: smith@scf.che.tohoku.ac.jp
A4: Hint: Select green box to see how to use function. Be careful for units! First letter of function is dependent variable; other letters are independent variables; 1=CO2.
A5: Example: VPT1(P,T) is Specific Volume as a function of Pressure and Temperature.
A6: Function units are in kg, m3, C, Pa, J
A7: Fundamental Constants | B7: Function Name | C7: Examples
A8: Tc: critical temperature of CO2 (in C) | B8: CO2TC() | C8: =CO2TC() ->  | D8: oC
A9: Pc: critical pressure of CO2 (in Pa) | B9: CO2PC() | C9: =CO2PC()/1000000 ->  | D9: MPa
A10: Vc: critical volume of CO2 (m3/kg) | B10: CO2VC() | C10: =CO2VC() ->  | D10: m3/kg
A11: rc: critical density of CO2 (kg/m3) | B11: CO2rhoc() | C11: =CO2rhoc() ->  | D11: kg/m3
A12: Mw: molecular weight of CO2 (kg/mol) | B12: CO2MW() | C12: =co2mw() ->  | D12: kg/mol
A14: Solid | D14: T [oC] | E14: P [Pa] | F14: Calculated Value
A15: Pm: melting pressure (S-L) | B15: PMELT1(T) | D15: -55.6 | F15: =PMELT1(D15)/1000000 ->  | G15: MPa
A16: Tm: melting temperature (S-L) | B16: TMELT1(P) | E16: 5000000 | F16: =TMELT1(E16) ->  | G16: oC
A17: Psub: sublimation pressure (S-V) | B17: PSUB1(T) | D17: -85 | F17: =PSUB1(D17)/1000000 ->  | G17: MPa
A19: Pressure-Volume (density)-Temperature
A20: Based on: R. Span and W. Wagner, A New Equation of State for Carbon Dioxide Covering the Fluid Region from the Triple-Point Temperature to 1100 K at Pressures up to 800 MPa, J. Phys. Chem. Ref. Data 25(6), 1509-1596 (1996).
C21: r [kg/m3] | D21: T [oC] | E21: P [Pa] | F21: Calculated Value
A22: Saturation Curve: Vapor-liquid Equilibrium
A23: Psat: Vapor pressure (saturation pressure), Pa | B23: PSAT1(T) | D23: 25 | F23: =PSAT1(D23)/1000000 ->  | G23: MPa
A24: Tsat: Vapor temperature (saturation temperature), oC | B24: TSAT1(P) | E24: 7000000 | F24: =TSAT1(E24) ->  | G24: oC
A25: Svap: Heat (enthalpy) of vaporization, J/kg | B25: HVAPT1(T) | D25: 25 | F25: =HVAPT1(D25)*co2mw()/1000 ->  | G25: kJ/mol
A26: Hvap: Entropy of vaporization, J/kg K | B26: SVAPT1(T) | D26: 25 | F26: =SVAPT1(D26) ->  | G26: J/kg K
A27: Liquid phase (saturated)
A28: r: Density, kg/m3 | B28: RHOLT1(T) | D28: 25 | F28: =rholt1(D28) ->  | G28: kg/m3
A29: H: Enthalpy, H, J/kg | B29: HLT1(T) | D29: 25 | F29: =_HLT1(D29) ->  | G29: J/kg
A30: S: Entropy, S, J/kg K | B30: SLT1(T) | D30: 25 | F30: =_SLT1(D30) ->  | G30: J/kg K
A31: Cp: constant pressure heat capacity, J/kg K | B31: CPLT1(T) | D31: 25 | F31: =CPLT1(D31) ->  | G31: J/kg K
A32: Cv: constant volume heat capacity, J/kg K | B32: CVLT1(T) | D32: 25 | F32: =CVLT1(D32) ->  | G32: J/kg K
A33: Gas/vapor phase (saturated)
A34: r: Density, kg/m3 | B34: RHOGT1(T) | D34: 25 | F34: =rhogt1(D34) ->  | G34: kg/m3
A35: H: Enthalpy, H, J/kg | B35: HGT1(T) | D35: 25 | F35: =_HGT1(D35) ->  | G35: J/kg
A36: S: Entropy, S, J/kg K | B36: SGT1(T) | D36: 25 | F36: =_SGT1(D36) ->  | G36: J/kg K
A37: Cp: constant pressure heat capacity, J/kg K | B37: CPGT1(T) | D37: 25 | F37: =CPGT1(D37) ->  | G37: J/kg K
A38: Cv: constant volume heat capacity, J/kg K | B38: CVGT1(T) | D38: 25 | F38: =CVGT1(D38) ->  | G38: J/kg K
A39: Single Phase Region
A40: Note: U, H, S, Cp, Cv can be used
A41: on the saturation boundary
A42: T,P functions | C42: r [kg/m3] | D42: T [oC] | E42: P [Pa] | F42: Calculated Value
A43: V: specific volume, Wagner eqn., m3/kg | B43: VTP1(T,P) | D43: 40 | E43: 10000000 | F43: =_VTP1(D43,E43) ->  | G43: m3/kg
A44: r: Density, kg/m3 | B44: RHOTP1(T,P) | D44: 40 | E44: 10000000 | F44: =rhotp1(D44,E44) ->  | G44: kg/m3
A45: f: fugacity, Pa | B45: FUGTP1(T,P) | D45: 40 | E45: 10000000 | F45: =fugtp1(D45,E45)/1000000 ->  | G45: MPa
A46: U: internal energy | B46: UTP1(T,P) | D46: 40 | E46: 10000000 | F46: =_UTP1(D46,E46) ->  | G46: J/kg
A47: H: Enthalpy, H, J/kg | B47: HTP1(T,P) | D47: 40 | E47: 10000000 | F47: =_HTP1(D47,E47) ->  | G47: J/kg
A48: S: Entropy, S, J/kg K | B48: STP1(T,P) | D48: 40 | E48: 10000000 | F48: =_STP1(D48,E48) ->  | G48: J/kg K
A49: Cv: constant volume heat capacity, J/kg K | B49: CVTP1(T,P) | D49: 40 | E49: 10000000 | F49: =CVTP1(D49,E49) ->  | G49: J/kg K
A50: Cp: constant pressure heat capacity, J/kg K | B50: CPTP1(T,P) | D50: 40 | E50: 10000000 | F50: =cptp1(D50,E50) ->  | G50: J/kg K
A51: w: speed of sound, m/s | B51: WTP1(T,P) | D51: 40 | E51: 10000000 | F51: =_WTP1(D51,E51) ->  | G51: m/s
A52: r,T functions
A53: P: pressure, Wagner eqn., Pa | B53: PRT1(RHO,T) | C53: 628.61 | D53: 40 | F53: =_PRT1(C53,D53)/1000000 ->  | G53: MPa
A54: f: fugacity, Pa | B54: FUGRT1(T,RHO) | C54: 628.61 | D54: 40 | F54: =FUGRT1(C54,D54)/1000000 ->  | G54: MPa
A55: U: internal energy | B55: URT1(RHO,T) | C55: 628.61 | D55: 40 | F55: =_URT1(C55,D55) ->  | G55: J/kg
A56: H: Enthalpy, H, J/kg | B56: HRT1(RHO,T) | C56: 628.61 | D56: 40 | F56: =_HRT1(C56,D56) ->  | G56: J/kg
A57: S: Entropy, S, J/kg K | B57: SRT1(RHO,T) | C57: 628.61 | D57: 40 | F57: =_SRT1(C57,D57) ->  | G57: J/kg K
A58: Cv: constant volume heat capacity, J/kg K | B58: CVRT1(RHO,T) | C58: 628.61 | D58: 40 | F58: =CVRT1(C58,D58) ->  | G58: J/kg K
A59: Cp: constant pressure heat capacity, J/kg K | B59: CPRT1(RHO,T) | C59: 628.61 | D59: 40 | F59: =CPRT1(C59,D59) ->  | G59: J/kg K
A60: w: speed of sound, m/s | B60: WRT1(RHOH,T) | C60: 628.61 | D60: 40 | F60: =_WRT1(C60,D60) ->  | G60: m/s
A61: Virial Coefficients
A62: B: Second virial coefficient B, m3/kg | B62: VIRIALBT1(T) | D62: 25 | F62: =VIRIALBT1(D62) ->  | G62: m3/kg
A63: C: Third virial coefficient C, m6/kg2 | B63: VIRIALCT1(T) | D63: 25 | F63: =VIRIALCT1(D63) ->  | G63: m6/kg2
A64: Functions Useful for Compressors/Pumps/ Expansions through Valves | C64: S J/kg K | E64: H J/kg
A65: T: single phase temperature at P, S | B65: TPS1(P,S) | C65: -1382.745766 | D65: 10000000 | F65: =_TPS1(D65,C65) ->  | G65: oC
A66: T: single phase temperature at P, H | B66: TPH1(P,H) | D66: 10000000 | E66: -193737.3284 | F66: =_TPH1(D66,E66) ->  | G66: oC
C69: r [kg/m3] | D69: T [oC] | E69: P [Pa] | F69: Calculated Value
A70: Joule-Thomson coefficient mu = (dT/dP)h | B70: JTRT1(RHO,T) | C70: 628.61 | D70: 40 | F70: =JTRT1(C70,D70)*1000000 ->  | G70: K/MPa
A71: Isothermal throttling coefficient delt = (dh/dP)T | B71: DELTRT1(RHO,T) | C71: 628.61 | D71: 40 | F71: =DELTRT1(C71,D71) ->  | G71: J/kg Pa
A72: Isentropic temperature pressure coefficient bs = (dT/dP)s | B72: BETASRT1(RHO,T) | C72: 628.61 | D72: 40 | F72: =BETASRT1(C72,D72)*1000000 ->  | G72: K/MPa
A73: Derivative Properties
A74: T,P functions | C74: r [kg/m3] | D74: T [oC] | E74: P [Pa] | F74: Calculated Value
A75: dP/dT derivative | B75: DPDTTP1(T, P) | D75: 40 | E75: 10000000 | F75: =DPDTTP1(D75, E75)/1000000 ->  | G75: MPa/K
A76: dP/drho derivative = (dP/drho)T | B76: DPDRTP1(T,P) | D76: 40 | E76: 10000000 | F76: =DPDRTP1(D76,E76)/1000000 ->  | G76: MPa/(kg/m3)
A77: drho/dT derivative = (drho/dT)P | B77: DRDTTP1(T,P) | D77: 40 | E77: 10000000 | F77: =DRDTTP1(D77,E77) ->  | G77: (kg/m3 K)
A78: Isothermal compressibility = (1/rho)*(drho/dP)T | B78: BETATTP1(T,P) | D78: 40 | E78: 10000000 | F78: =BETATTP1(D78,E78)*1000000 ->  | G78: 1/MPa
A79: Volume coefficient of expansion = (1/V)*(dV/dT)P | B79: BETAPTP1(T,P) | D79: 40 | E79: 10000000 | F79: =BETAPTP1(D79,E79) ->  | G79: 1/K
A80: r,T functions
A81: dP/dT derivative | B81: DPDTRT1(RHO,T) | C81: 628.61 | D81: 40 | F81: =DPDTRT1(C81,D81)/1000000 ->  | G81: MPa/K
A82: dP/drho derivative = (dP/drho)T | B82: DPDRRT1(RHO,T) | C82: 628.61 | D82: 40 | F82: =DPDRRT1(C82,D82)/1000000 ->  | G82: MPa/(kg/m3)
A83: drho/dT derivative = (drho/dT)P (derived) | B83: DRDTRT1(RHO,T) | C83: 628.61 | D83: 40 | F83: =DRDTRT1(C83,D83) ->  | G83: (kg/m3 K)
A84: Isothermal compressibility = -(1/V)*(dV/dP)T | B84: BETATRT1(RHO,T) | C84: 628.61 | D84: 40 | F84: =BETATRT1(C84,D84)*1000000 ->  | G84: 1/MPa
A85: Volume coefficient of expansion = -(1/V)*(dV/dT)P | B85: BETAPRT1(RHO,T) | C85: 628.61 | D85: 40 | F85: =BETAPRT1(C85,D85) ->  | G85: 1/K
A86: Transport Properties
A87: Based on correlations in Reid, Prausnitz and Poling (1987)
A88: Liquid phase (saturated) | D88: T [oC] | F88: Calculated Value
A89: Viscosity, Pa s | B89: VMULT1(T) | D89: 25 | F89: =vmult1(D89) ->  | G89: Pa s
A90: Kinematic viscosity (dense gas), (=mu/rho), m2/s | B90: VNULT1(T) | D90: 25 | F90: =vnult1(D90) ->  | G90: m2/s
A91: Surface tension, N/m | B91: SIGMAT1(T) | D91: 25 | F91: =SIGMAT1(D91) ->  | G91: N/m
A92: Gas/vapor phase (saturated)
A93: Viscosity, Pa s | B93: VMUGT1(T) | D93: 25 | F93: =vmugt1(D93) ->  | G93: Pa s
A94: Kinematic viscosity (dense gas), (=mu/rho), m2/s | B94: VNUGT1(T) | D94: 25 | F94: =vnugt1(D94) ->  | G94: m2/s
A95: Ideal gas thermal conductivity, W/(m K) | B95: KIDT1(T) | D95: 25 | F95: =KIDT1(D95) ->  | G95: W/(m K)
A96: Single Phase (Gas/vapor) Region
A97: T,P functions | C97: r [kg/m3] | D97: T [oC] | E97: P [Pa] | F97: Calculated Value
A98: Viscosity (dense gas), Pa s | B98: VMUTP1(T,P) | D98: 40 | E98: 10000000 | F98: =VMUTP1(D98,E98) ->  | G98: Pa s
A99: Kinematic viscosity (dense gas), (=mu/rho), m2/s | B99: VNUTP1(T,P) | D99: 40 | E99: 10000000 | F99: =vnutp1(D99,E99) ->  | G99: m3/s
A100: Thermal conductivity (dense gas), W/(m K) | B100: kTP1(T,P) | D100: 40 | E100: 10000000 | F100: =_kTP1(D100,E100) ->  | G100: W/(m K)
A101: r,T functions
A102: Viscosity (dense gas), Pa s | B102: VMURT1(RHO,T) | C102: 628.61 | D102: 40 | F102: =vmurt1(C102,D102) ->  | G102: Pa s
A103: Kinematic viscosity (dense gas), (=mu/rho), m2/s | B103: VNURT1(RHO,T) | C103: 628.61 | D103: 40 | F103: =VNURT1(C103,D103) ->  | G103: m2/s
A104: Thermal conductivity (dense gas), W/(m K) | B104: kRT1(RHO,T) | C104: 628.61 | D104: 40 | F104: =_kRT1(C104,D104) ->  | G104: W/(m K)

Sheet PUMP CYCLE
D1: PUMP (Liquid - Vapor Cycle) | I1: SCF Extraction Cycle Energy Requirements: Pump (liquid CO2 feed)
J2: based the Wagner Equation of State-version 7.0 | N2: Report errors to R.L.Smith. Email: smith@scf.che.tohoku.ac.jp
J3: Version 1.6
A5: R. Span and W. Wagner, A New Equation of State for Carbon Dioxide Covering | G5: Point | H5: T [C] | I5: P [MPa] | J5: H [kJ/kg] | K5: X | L5: S [kJ/kg K] | M5: rho [kg/m3] | N5: Comments | O5: HL [kJ/kg] | P5: HG [kJ/kg] | Q5: rhoL [kg/m3] | R5: rhoG [kg/m3] | S5: S [kJ/kg K] | T5: S [kJ/kg K]
A6: the Fluid Regionfrom the Triple-Point Temperature to 1100 K at Pressures up to 800 MPa, | G6: 2 | H6: =T_PS1(I6*1000000,L6*1000) -> 14.79332214 | I6: =I8 -> 15 | J6: =H_TP1(H6,I6*1000000)/1000 -> 225.3164788 | K6: 0 | L6: =L11 -> 1.04607019 | M6: =rho_tp1(H6,I6*1000000) -> 930.8079211 | N6: Compressed liquid | O6: =IF(H6<CO2_TC(),HL_t1(H6)/1000,H_TP1(H6,I6*1000000)/1000) -> 239.3734579 | P6: =IF(H6<CO2_TC(),HG_T1(H6)/1000,H_TP1(H6,I6*1000000)/1000) -> 416.9301746 | Q6: =IF(H6<CO2_TC(),rhol_t1(H6),rho_tp1(H6,I6*1000000)) -> 822.9650407 | R6: =IF(H6<CO2_TC(),rhog_T1(H6),rho_tp1(H6,I6*1000000)) -> 159.5482369 | S6: =IF(H6<CO2_TC(),sl_t1(H6)/1000,s_tp1(H6,I6*1000000)/1000) -> 1.133836219 | T6: =IF(H6<CO2_TC(),sG_T1(H6)/1000,s_tp1(H6,I6*1000000)/1000) -> 1.750468711
A7: J. Phys. Chem. Ref. Data 25(6), 1509-1596 (1996). | G7: 3 | H7: 40 | I7: 15 | J7: =H_TP1(H7,I7*1000000)/1000 -> 285.4788014 | K7: =IF(AND(J7>O7,J7<P7),(J7-O7)/(P7-O7),1) -> 1 | L7: =s_tp1(H7,I7*1000000)/1000 -> 1.246079602 | M7: =rho_tp1(H7,I7*1000000) -> 780.2328786 | N7: Supercritical fluid state-extraction | O7: =IF(H7<CO2_TC(),HL_t1(H7)/1000,H_TP1(H7,I7*1000000)/1000) -> 285.4788014 | P7: =IF(H7<CO2_TC(),HG_T1(H7)/1000,H_TP1(H7,I7*1000000)/1000) -> 285.4788014 | Q7: =IF(H7<CO2_TC(),rhol_t1(H7),rho_tp1(H7,I7*1000000)) -> 780.2328786 | R7: =IF(H7<CO2_TC(),rhog_T1(H7),rho_tp1(H7,I7*1000000)) -> 780.2328786 | S7: =IF(H7<CO2_TC(),sl_t1(H7)/1000,s_tp1(H7,I7*1000000)/1000) -> 1.246079602 | T7: =IF(H7<CO2_TC(),sG_T1(H7)/1000,s_tp1(H7,I7*1000000)/1000) -> 1.246079602
G8: 4 | H8: =H7 -> 40 | I8: =I7 -> 15 | J8: =H_TP1(H8,I8*1000000)/1000 -> 285.4788014 | K8: =IF(AND(J8>O8,J8<P8),(J8-O8)/(P8-O8),1) -> 1 | L8: =s_tp1(H8,I8*1000000)/1000 -> 1.246079602 | M8: =rho_tp1(H8,I8*1000000) -> 780.2328786 | N8: SC fluid state saturated with solute | O8: =IF(H8<CO2_TC(),HL_t1(H8)/1000,H_TP1(H8,I8*1000000)/1000) -> 285.4788014 | P8: =IF(H8<CO2_TC(),HG_T1(H8)/1000,H_TP1(H8,I8*1000000)/1000) -> 285.4788014 | Q8: =IF(H8<CO2_TC(),rhol_t1(H8),rho_tp1(H8,I8*1000000)) -> 780.2328786 | R8: =IF(H8<CO2_TC(),rhog_T1(H8),rho_tp1(H8,I8*1000000)) -> 780.2328786 | S8: =IF(H8<CO2_TC(),sl_t1(H8)/1000,s_tp1(H8,I8*1000000)/1000) -> 1.246079602 | T8: =IF(H8<CO2_TC(),sG_T1(H8)/1000,s_tp1(H8,I8*1000000)/1000) -> 1.246079602
G9: 5 | H9: =T_PH1(I9*1000000,J9*1000) -> 5.300193687 | I9: 4 | J9: =J8 -> 285.4788014 | K9: =IF(AND(J9>O9,J9<P9),(J9-O9)/(P9-O9),1) -> 0.3374565121 | L9: =IF(K9<1,K9*T9+(1-K9)*S9,s_tp1(H9,I9*1000000)/1000) -> 1.305380478 | M9: =IF(K9<1,K9*R9+(1-K9)*Q9,rho_tp1(H9,I9*1000000)) -> 631.3849784 | N9: System state decided by final enthalpy | O9: =IF(H9<CO2_TC(),HL_t1(H9)/1000,H_TP1(H9,I9*1000000)/1000) -> 213.2729065 | P9: =IF(H9<CO2_TC(),HG_T1(H9)/1000,H_TP1(H9,I9*1000000)/1000) -> 427.2438695 | Q9: =IF(H9<CO2_TC(),rhol_t1(H9),rho_tp1(H9,I9*1000000)) -> 894.0210709 | R9: =IF(H9<CO2_TC(),rhog_T1(H9),rho_tp1(H9,I9*1000000)) -> 115.739772 | S9: =IF(H9<CO2_TC(),sl_t1(H9)/1000,s_tp1(H9,I9*1000000)/1000) -> 1.046068924 | T9: =IF(H9<CO2_TC(),sG_T1(H9)/1000,s_tp1(H9,I9*1000000)/1000) -> 1.814498469
G10: 6 | H10: =H9 -> 5.300193687 | I10: =I9 -> 4 | J10: =IF(K9=1,J9,P9) -> 427.2438695 | K10: =IF(AND(J10>O10,J10<P10),(J10-O10)/(P10-O10),1) -> 1 | L10: =sG_T1(H10)/1000 -> 1.814498469 | M10: =rho_tp1(H10,I10*1000000) -> 115.739772 | N10: Saturated vapor | O10: =IF(H10<CO2_TC(),HL_t1(H10)/1000,H_TP1(H10,I10*1000000)/1000) -> 213.2729065 | P10: =IF(H10<CO2_TC(),HG_T1(H10)/1000,H_TP1(H10,I10*1000000)/1000) -> 427.2438695 | Q10: =IF(H10<CO2_TC(),rhol_t1(H10),rho_tp1(H10,I10*1000000)) -> 894.0210709 | R10: =IF(H10<CO2_TC(),rhog_T1(H10),rho_tp1(H10,I10*1000000)) -> 115.739772 | S10: =IF(H10<CO2_TC(),sl_t1(H10)/1000,s_tp1(H10,I10*1000000)/1000) -> 1.046068924 | T10: =IF(H10<CO2_TC(),sG_T1(H10)/1000,s_tp1(H10,I10*1000000)/1000) -> 1.814498469
G11: 1 | H11: =Tsat_P1(I11*1000000) -> 5.300336939 | I11: =I10 -> 4 | J11: =HL_t1(H11)/1000 -> 213.2732753 | K11: 0 | L11: =sl_t1(H11)/1000 -> 1.04607019 | M11: =rhol_t1(H11) -> 894.0201203 | N11: Saturated liquid | O11: =IF(H11<CO2_TC(),HL_t1(H11)/1000,H_TP1(H11,I11*1000000)/1000) -> 213.2732753 | P11: =IF(H11<CO2_TC(),HG_T1(H11)/1000,H_TP1(H11,I11*1000000)/1000) -> 427.2437543 | Q11: =IF(H11<CO2_TC(),rhol_t1(H11),rho_tp1(H11,I11*1000000)) -> 894.0201203 | R11: =IF(H11<CO2_TC(),rhog_T1(H11),rho_tp1(H11,I11*1000000)) -> 115.7403102 | S11: =IF(H11<CO2_TC(),sl_t1(H11)/1000,s_tp1(H11,I11*1000000)/1000) -> 1.04607019 | T11: =IF(H11<CO2_TC(),sG_T1(H11)/1000,s_tp1(H11,I11*1000000)/1000) -> 1.814497601
J14: Solvent Flow Rate | L14: 0.3 | M14: kg/s
J17: Heating and Cooling Requirements
J18: Q32 | K18: =(J7-J6)*L14 -> 18.04869677 | L18: kW
J19: Q65 | K19: =(J10-J9)*L14 -> 42.52952043 | L19: kW | T19: Tables for the Point-to-Point curves in the above plots.
J20: Q16 | K20: =(J11-J10)*L14 -> -64.19117825 | L20: kW
J22: Electrical Energy Requirements
J23: W21 | K23: =(J6-J11)*L14 -> 3.612961053 | L23: kW
T24: P [MPa] | U24: T [C] | V24: rho [kg/m3] | W24: S [kJ/kg K] | X24: H [kJ/kg]
S25: Path 1-2 | T25: =$I$11 -> 4 | U25: =T_PS1(T25*1000000,W25*1000) -> 5.300193687 | V25: =rho_tp1(U25,T25*1000000) -> 894.0424508 | W25: =$L$11 -> 1.04607019
T26: =T25+($I$6-$I$11)/10 -> 5.1 | U26: 6.382003805 | V26: 898.5157181 | W26: =$L$11 -> 1.04607019
T27: =T26+($I$6-$I$11)/10 -> 6.2 | U27: 7.423762997 | V27: 902.7343375 | W27: 1.04607019
T28: 7.3 | U28: 8.43229463 | V28: 906.7386986 | W28: 1.04607019
T29: 8.4 | U29: 9.411231524 | V29: 910.5643615 | W29: 1.04607019
T30: 9.5 | U30: 10.36342338 | V30: 914.236072 | W30: 1.04607019
T31: 10.6 | U31: 11.29119806 | V31: 917.772156 | W31: 1.04607019
T32: 11.7 | U32: 12.19650961 | V32: 921.1868506 | W32: 1.04607019
T33: 12.8 | U33: 13.08102992 | V33: 924.4916244 | W33: 1.04607019
T34: 13.9 | U34: 13.94620979 | V34: 927.6959725 | W34: 1.04607019
T35: 15 | U35: 14.79332214 | V35: 930.8079211 | W35: 1.04607019
S36: Path 2-3 | T36: =$I$6 -> 15 | U36: =$H$6 -> 14.79332214 | V36: 930.8079211 | W36: =s_tp1(U36,T36*1000000)/1000 -> 1.04607019
T37: =$I$6 -> 15 | U37: =U36+($H$7-$H$6)/10 -> 17.31398992 | V37: 918.013975 | W37: =s_tp1(U37,T37*1000000)/1000 -> 1.06521144
T38: 15 | U38: =U37+($H$7-$H$6)/10 -> 19.83465771 | V38: 904.8351245 | W38: =s_tp1(U38,T38*1000000)/1000 -> 1.084456589
T39: 15 | U39: 22.3553255 | V39: 891.2363463 | W39: =s_tp1(U39,T39*1000000)/1000 -> 1.103832323
T40: 15 | U40: 24.87599328 | V40: 877.1772191 | W40: =s_tp1(U40,T40*1000000)/1000 -> 1.123369379
T41: 15 | U41: 27.39666107 | V41: 862.6115381 | W41: =s_tp1(U41,T41*1000000)/1000 -> 1.143102297
T42: 15 | U42: 29.91732885 | V42: 847.4875662 | W42: =s_tp1(U42,T42*1000000)/1000 -> 1.163068575
T43: 15 | U43: 32.43799664 | V43: 831.7489424 | W43: =s_tp1(U43,T43*1000000)/1000 -> 1.18330759
T44: 15 | U44: 34.95866443 | V44: 815.33586 | W44: =s_tp1(U44,T44*1000000)/1000 -> 1.203859999
T45: 15 | U45: 37.47933221 | V45: 798.1857552 | W45: =s_tp1(U45,T45*1000000)/1000 -> 1.224768415
T46: 15 | U46: 40 | V46: 780.2328786 | W46: =s_tp1(U46,T46*1000000)/1000 -> 1.246079602 | Y46: X | Z46: HL | AA46: HG | AB46: SL | AC46: SG | AD46: RHOL | AE46: RHOG
S47: Path 3-4-5 | T47: =$I$7 -> 15 | U47: =IF(AND(Y47>0,Y47<1),Tsat_P1(T47*1000000),T_PH1(T47*1000000,X47*1000)) -> 40 | V47: =IF(Y47=1,rho_tp1(U47,T47*1000000),Y47*AE47+(1-Y47)*AD47) -> 780.2328786 | W47: =IF(Y47=1,s_tp1(U47,T47*1000000)/1000,Y47*AC47+(1-Y47)*AB47) -> 1.246079602 | X47: =$J$7 -> 285.4788014 | Y47: =IF(AND(X47>Z47,X47<AA47),(X47-Z47)/(AA47-Z47),1) -> 1 | Z47: =IF(T47*1000000<CO2_PC(),HL_t1(Tsat_P1(T47*1000000))/1000,0) -> 0 | AA47: =IF(T47*1000000<CO2_PC(),HG_T1(Tsat_P1(T47*1000000))/1000,0) -> 0 | AB47: =IF(U47<CO2_TC(),sl_t1(U47)/1000,s_tp1(U47,T47*1000000)/1000) -> 1.246079602 | AC47: =IF(U47<CO2_TC(),sG_T1(U47)/1000,s_tp1(U47,T47*1000000)/1000) -> 1.246079602 | AD47: =IF(U47<CO2_TC(),rhol_t1(U47),rho_tp1(U47,T47*1000000)) -> 780.2328786 | AE47: =IF(U47<CO2_TC(),rhog_T1(U47),rho_tp1(U47,T47*1000000)) -> 780.2328786
T48: =T47+($I$9-$I$7)/10 -> 13.9 | U48: 38.92935094 | V48: 770.0323912 | W48: =IF(Y48=1,s_tp1(U48,T48*1000000)/1000,Y48*AC48+(1-Y48)*AB48) -> 1.250618707 | X48: =$J$7 -> 285.4788014 | Y48: =IF(AND(X48>Z48,X48<AA48),(X48-Z48)/(AA48-Z48),1) -> 1 | Z48: =IF(T48*1000000<CO2_PC(),HL_t1(Tsat_P1(T48*1000000))/1000,0) -> 0 | AA48: =IF(T48*1000000<CO2_PC(),HG_T1(Tsat_P1(T48*1000000))/1000,0) -> 0 | AB48: =IF(U48<CO2_TC(),sl_t1(U48)/1000,s_tp1(U48,T48*1000000)/1000) -> 1.250618707 | AC48: =IF(U48<CO2_TC(),sG_T1(U48)/1000,s_tp1(U48,T48*1000000)/1000) -> 1.250618707 | AD48: =IF(U48<CO2_TC(),rhol_t1(U48),rho_tp1(U48,T48*1000000)) -> 770.0323912 | AE48: =IF(U48<CO2_TC(),rhog_T1(U48),rho_tp1(U48,T48*1000000)) -> 770.0323912
T49: =T48+($I$9-$I$7)/10 -> 12.8 | U49: 37.73551266 | V49: 759.076999 | W49: =IF(Y49=1,s_tp1(U49,T49*1000000)/1000,Y49*AC49+(1-Y49)*AB49) -> 1.25523726 | X49: 285.4788014 | Y49: 1 | Z49: =IF(T49*1000000<CO2_PC(),HL_t1(Tsat_P1(T49*1000000))/1000,0) -> 0 | AA49: =IF(T49*1000000<CO2_PC(),HG_T1(Tsat_P1(T49*1000000))/1000,0) -> 0 | AB49: =IF(U49<CO2_TC(),sl_t1(U49)/1000,s_tp1(U49,T49*1000000)/1000) -> 1.25523726 | AC49: =IF(U49<CO2_TC(),sG_T1(U49)/1000,s_tp1(U49,T49*1000000)/1000) -> 1.25523726 | AD49: =IF(U49<CO2_TC(),rhol_t1(U49),rho_tp1(U49,T49*1000000)) -> 759.076999 | AE49: =IF(U49<CO2_TC(),rhog_T1(U49),rho_tp1(U49,T49*1000000)) -> 759.076999
T50: 11.7 | U50: 36.3956343 | V50: 747.2058151 | W50: =IF(Y50=1,s_tp1(U50,T50*1000000)/1000,Y50*AC50+(1-Y50)*AB50) -> 1.259944835 | X50: 285.4788014 | Y50: 1 | Z50: =IF(T50*1000000<CO2_PC(),HL_t1(Tsat_P1(T50*1000000))/1000,0) -> 0 | AA50: =IF(T50*1000000<CO2_PC(),HG_T1(Tsat_P1(T50*1000000))/1000,0) -> 0 | AB50: =IF(U50<CO2_TC(),sl_t1(U50)/1000,s_tp1(U50,T50*1000000)/1000) -> 1.259944835 | AC50: =IF(U50<CO2_TC(),sG_T1(U50)/1000,s_tp1(U50,T50*1000000)/1000) -> 1.259944835 | AD50: =IF(U50<CO2_TC(),rhol_t1(U50),rho_tp1(U50,T50*1000000)) -> 747.2058151 | AE50: =IF(U50<CO2_TC(),rhog_T1(U50),rho_tp1(U50,T50*1000000)) -> 747.2058151
T51: 10.6 | U51: 34.87867739 | V51: 734.185405 | W51: =IF(Y51=1,s_tp1(U51,T51*1000000)/1000,Y51*AC51+(1-Y51)*AB51) -> 1.264753476 | X51: 285.4788014 | Y51: 1 | Z51: =IF(T51*1000000<CO2_PC(),HL_t1(Tsat_P1(T51*1000000))/1000,0) -> 0 | AA51: =IF(T51*1000000<CO2_PC(),HG_T1(Tsat_P1(T51*1000000))/1000,0) -> 0 | AB51: =IF(U51<CO2_TC(),sl_t1(U51)/1000,s_tp1(U51,T51*1000000)/1000) -> 1.264753476 | AC51: =IF(U51<CO2_TC(),sG_T1(U51)/1000,s_tp1(U51,T51*1000000)/1000) -> 1.264753476 | AD51: =IF(U51<CO2_TC(),rhol_t1(U51),rho_tp1(U51,T51*1000000)) -> 734.185405 | AE51: =IF(U51<CO2_TC(),rhog_T1(U51),rho_tp1(U51,T51*1000000)) -> 734.185405
K52: See Compressor Cycle sheet for the Tables used for the Saturation Curves in the above plots. | T52: 9.5 | U52: 33.13959948 | V52: 719.6477045 | W52: =IF(Y52=1,s_tp1(U52,T52*1000000)/1000,Y52*AC52+(1-Y52)*AB52) -> 1.269678936 | X52: 285.4788014 | Y52: 1 | Z52: =IF(T52*1000000<CO2_PC(),HL_t1(Tsat_P1(T52*1000000))/1000,0) -> 0 | AA52: =IF(T52*1000000<CO2_PC(),HG_T1(Tsat_P1(T52*1000000))/1000,0) -> 0 | AB52: =IF(U52<CO2_TC(),sl_t1(U52)/1000,s_tp1(U52,T52*1000000)/1000) -> 1.269678936 | AC52: =IF(U52<CO2_TC(),sG_T1(U52)/1000,s_tp1(U52,T52*1000000)/1000) -> 1.269678936 | AD52: =IF(U52<CO2_TC(),rhol_t1(U52),rho_tp1(U52,T52*1000000)) -> 719.6477045 | AE52: =IF(U52<CO2_TC(),rhog_T1(U52),rho_tp1(U52,T52*1000000)) -> 719.6477045
T53: 8.4 | U53: 31.10648449 | V53: 702.9551564 | W53: =IF(Y53=1,s_tp1(U53,T53*1000000)/1000,Y53*AC53+(1-Y53)*AB53) -> 1.274743057 | X53: 285.4788014 | Y53: 1 | Z53: =IF(T53*1000000<CO2_PC(),HL_t1(Tsat_P1(T53*1000000))/1000,0) -> 0 | AA53: =IF(T53*1000000<CO2_PC(),HG_T1(Tsat_P1(T53*1000000))/1000,0) -> 0 | AB53: =IF(U53<CO2_TC(),sl_t1(U53)/1000,s_tp1(U53,T53*1000000)/1000) -> 1.274743057 | AC53: =IF(U53<CO2_TC(),sG_T1(U53)/1000,s_tp1(U53,T53*1000000)/1000) -> 1.274743057 | AD53: =IF(U53<CO2_TC(),rhol_t1(U53),rho_tp1(U53,T53*1000000)) -> 702.9551564 | AE53: =IF(U53<CO2_TC(),rhog_T1(U53),rho_tp1(U53,T53*1000000)) -> 702.9551564
T54: 7.3 | U54: 28.64995927 | V54: 682.8828825 | W54: =IF(Y54=1,s_tp1(U54,T54*1000000)/1000,Y54*AC54+(1-Y54)*AB54) -> 1.279978813 | X54: 285.4788014 | Y54: 1 | Z54: =IF(T54*1000000<CO2_PC(),HL_t1(Tsat_P1(T54*1000000))/1000,0) -> 311.1411238 | AA54: =IF(T54*1000000<CO2_PC(),HG_T1(Tsat_P1(T54*1000000))/1000,0) -> 357.2329041 | AB54: =IF(U54<CO2_TC(),sl_t1(U54)/1000,s_tp1(U54,T54*1000000)/1000) -> 1.308629465 | AC54: =IF(U54<CO2_TC(),sG_T1(U54)/1000,s_tp1(U54,T54*1000000)/1000) -> 1.585214798 | AD54: =IF(U54<CO2_TC(),rhol_t1(U54),rho_tp1(U54,T54*1000000)) -> 639.1607692 | AE54: =IF(U54<CO2_TC(),rhog_T1(U54),rho_tp1(U54,T54*1000000)) -> 303.2387978
T55: 6.2 | U55: 23.3908943 | V55: 666.297774 | W55: =IF(Y55=1,s_tp1(U55,T55*1000000)/1000,Y55*AC55+(1-Y55)*AB55) -> 1.285687632 | X55: 285.4788014 | Y55: 0.1316399764 | Z55: =IF(T55*1000000<CO2_PC(),HL_t1(Tsat_P1(T55*1000000))/1000,0) -> 268.1900961 | AA55: =IF(T55*1000000<CO2_PC(),HG_T1(Tsat_P1(T55*1000000))/1000,0) -> 399.5233412 | AB55: =IF(U55<CO2_TC(),sl_t1(U55)/1000,s_tp1(U55,T55*1000000)/1000) -> 1.227386328 | AC55: =IF(U55<CO2_TC(),sG_T1(U55)/1000,s_tp1(U55,T55*1000000)/1000) -> 1.670270826 | AD55: =IF(U55<CO2_TC(),rhol_t1(U55),rho_tp1(U55,T55*1000000)) -> 733.2600585 | AE55: =IF(U55<CO2_TC(),rhog_T1(U55),rho_tp1(U55,T55*1000000)) -> 224.5826317
T56: 5.1 | U56: 15.10403422 | V56: 651.3071906 | W56: =IF(Y56=1,s_tp1(U56,T56*1000000)/1000,Y56*AC56+(1-Y56)*AB56) -> 1.293622653 | X56: 285.4788014 | Y56: 0.2564374401 | Z56: =IF(T56*1000000<CO2_PC(),HL_t1(Tsat_P1(T56*1000000))/1000,0) -> 240.3003706 | AA56: =IF(T56*1000000<CO2_PC(),HG_T1(Tsat_P1(T56*1000000))/1000,0) -> 416.4775729 | AB56: =IF(U56<CO2_TC(),sl_t1(U56)/1000,s_tp1(U56,T56*1000000)/1000) -> 1.13689263 | AC56: =IF(U56<CO2_TC(),sG_T1(U56)/1000,s_tp1(U56,T56*1000000)/1000) -> 1.748074926 | AD56: =IF(U56<CO2_TC(),rhol_t1(U56),rho_tp1(U56,T56*1000000)) -> 820.2865955 | AE56: =IF(U56<CO2_TC(),rhog_T1(U56),rho_tp1(U56,T56*1000000)) -> 161.336776
T57: 4 | U57: 5.300336939 | V57: 631.3852775 | W57: =IF(Y57=1,s_tp1(U57,T57*1000000)/1000,Y57*AC57+(1-Y57)*AB57) -> 1.305380286 | X57: 285.4788014 | Y57: 0.3374555519 | Z57: =IF(T57*1000000<CO2_PC(),HL_t1(Tsat_P1(T57*1000000))/1000,0) -> 213.2732753 | AA57: =IF(T57*1000000<CO2_PC(),HG_T1(Tsat_P1(T57*1000000))/1000,0) -> 427.2437543 | AB57: =IF(U57<CO2_TC(),sl_t1(U57)/1000,s_tp1(U57,T57*1000000)/1000) -> 1.04607019 | AC57: =IF(U57<CO2_TC(),sG_T1(U57)/1000,s_tp1(U57,T57*1000000)/1000) -> 1.814497601 | AD57: =IF(U57<CO2_TC(),rhol_t1(U57),rho_tp1(U57,T57*1000000)) -> 894.0201203 | AE57: =IF(U57<CO2_TC(),rhog_T1(U57),rho_tp1(U57,T57*1000000)) -> 115.7403102
S58: Path 5-6-1 | T58: =$I$11 -> 4 | U58: =$H$11 -> 5.300336939 | V58: =rhog_T1(U58) -> 115.7403102 | W58: =sG_T1(U58)/1000 -> 1.814497601
T59: =$I$11 -> 4 | U59: =$H$11 -> 5.300336939 | V59: =rhol_t1(U59) -> 894.0201203 | W59: =sl_t1(U59)/1000 -> 1.04607019

Sheet COMPRESSOR CYCLE
E1: COMPRESSOR (Gas Cycle) | J1: SCF Extraction Cycle Energy Requirements (Vapor CO2 feed)
J2: based the Wagner Equation of State-version 7.0 | N2: Report errors to R.L.Smith. Email: smith@scf.che.tohoku.ac.jp
A3: Based on: R. Span and W. Wagner, A New Equation of State for Carbon Dioxide Covering | K3: Version 1.6
A4: the Fluid Regionfrom the Triple-Point Temperature to 1100 K
A5: at Pressures up to 800 MPa, | G5: Point | H5: T [C] | I5: P [MPa] | J5: H [kJ/kg] | K5: X | L5: S [kJ/kg K] | M5: rho [kg/m3] | N5: Comments | O5: HL [kJ/kg] | P5: HG [kJ/kg] | Q5: rhoL [kg/m3] | R5: rhoG [kg/m3] | S5: S [kJ/kg K] | T5: S [kJ/kg K]
A6: J. Phys. Chem. Ref. Data 25(6), 1509-1596 (1996). | G6: 2 | H6: =T_PS1(I6*1000000,L6*1000) -> 75.63155751 | I6: =I8 -> 10 | J6: =H_TP1(H6,I6*1000000)/1000 -> 462.4585999 | K6: =IF(AND(J6>O6,J6<P6),(J6-O6)/(P6-O6),1) -> 1 | L6: =L11 -> 1.814497601 | M6: =rho_tp1(H6,I6*1000000) -> 231.8130486 | N6: compressed liquid | O6: =IF(H6<CO2_TC(),HL_t1(H6)/1000,H_TP1(H6,I6*1000000)/1000) -> 462.4585999 | P6: =IF(H6<CO2_TC(),HG_T1(H6)/1000,H_TP1(H6,I6*1000000)/1000) -> 462.4585999 | Q6: =IF(H6<CO2_TC(),rhol_t1(H6),rho_tp1(H6,I6*1000000)) -> 231.8130486 | R6: =IF(H6<CO2_TC(),rhog_T1(H6),rho_tp1(H6,I6*1000000)) -> 231.8130486 | S6: =IF(H6<CO2_TC(),sl_t1(H6)/1000,s_tp1(H6,I6*1000000)/1000) -> 1.814497601 | T6: =IF(H6<CO2_TC(),sG_T1(H6)/1000,s_tp1(H6,I6*1000000)/1000) -> 1.814497601
G7: 3 | H7: 40 | I7: 10 | J7: =H_TP1(H7,I7*1000000)/1000 -> 313.0393289 | K7: 1 | L7: =s_tp1(H7,I7*1000000)/1000 -> 1.356236635 | M7: =rho_tp1(H7,I7*1000000) -> 628.611562 | N7: supercritical fluid state-extraction | O7: =IF(H7<CO2_TC(),HL_t1(H7)/1000,H_TP1(H7,I7*1000000)/1000) -> 313.0393289 | P7: =IF(H7<CO2_TC(),HG_T1(H7)/1000,H_TP1(H7,I7*1000000)/1000) -> 313.0393289 | Q7: =IF(H7<CO2_TC(),rhol_t1(H7),rho_tp1(H7,I7*1000000)) -> 628.611562 | R7: =IF(H7<CO2_TC(),rhog_T1(H7),rho_tp1(H7,I7*1000000)) -> 628.611562 | S7: =IF(H7<CO2_TC(),sl_t1(H7)/1000,s_tp1(H7,I7*1000000)/1000) -> 1.356236635 | T7: =IF(H7<CO2_TC(),sG_T1(H7)/1000,s_tp1(H7,I7*1000000)/1000) -> 1.356236635
G8: 4 | H8: =H7 -> 40 | I8: =I7 -> 10 | J8: =H_TP1(H8,I8*1000000)/1000 -> 313.0393289 | K8: 1 | L8: =s_tp1(H8,I8*1000000)/1000 -> 1.356236635 | M8: =rho_tp1(H8,I8*1000000) -> 628.611562 | N8: SC fluid state saturated with solute | O8: =IF(H8<CO2_TC(),HL_t1(H8)/1000,H_TP1(H8,I8*1000000)/1000) -> 313.0393289 | P8: =IF(H8<CO2_TC(),HG_T1(H8)/1000,H_TP1(H8,I8*1000000)/1000) -> 313.0393289 | Q8: =IF(H8<CO2_TC(),rhol_t1(H8),rho_tp1(H8,I8*1000000)) -> 628.611562 | R8: =IF(H8<CO2_TC(),rhog_T1(H8),rho_tp1(H8,I8*1000000)) -> 628.611562 | S8: =IF(H8<CO2_TC(),sl_t1(H8)/1000,s_tp1(H8,I8*1000000)/1000) -> 1.356236635 | T8: =IF(H8<CO2_TC(),sG_T1(H8)/1000,s_tp1(H8,I8*1000000)/1000) -> 1.356236635
G9: 5 | H9: =T_PH1(I9*1000000,J9*1000) -> 5.300193687 | I9: 4 | J9: =J8 -> 313.0393289 | K9: 0.4662615012 | L9: =IF(K9<1,K9*T9+(1-K9)*S9,s_tp1(H9,I9*1000000)/1000) -> 1.404358037 | M9: =IF(K9<1,K9*R9+(1-K9)*Q9,rho_tp1(H9,I9*1000000)) -> 531.1384641 | N9: System state decided by final enthalpy | O9: =IF(H9<CO2_TC(),HL_t1(H9)/1000,H_TP1(H9,I9*1000000)/1000) -> 213.2729065 | P9: =IF(H9<CO2_TC(),HG_T1(H9)/1000,H_TP1(H9,I9*1000000)/1000) -> 427.2438695 | Q9: =IF(H9<CO2_TC(),rhol_t1(H9),rho_tp1(H9,I9*1000000)) -> 894.0210709 | R9: =IF(H9<CO2_TC(),rhog_T1(H9),rho_tp1(H9,I9*1000000)) -> 115.739772 | S9: =IF(H9<CO2_TC(),sl_t1(H9)/1000,s_tp1(H9,I9*1000000)/1000) -> 1.046068924 | T9: =IF(H9<CO2_TC(),sG_T1(H9)/1000,s_tp1(H9,I9*1000000)/1000) -> 1.814498469
G10: 6 | H10: =H9 -> 5.300193687 | I10: =I9 -> 4 | J10: =IF(K9=1,J9,P9) -> 427.2438695 | K10: 1 | L10: =L9 -> 1.404358037 | M10: =rho_tp1(H10,I10*1000000) -> 894.0424508 | N10: Saturated vapor | O10: =IF(H10<CO2_TC(),HL_t1(H10)/1000,H_TP1(H10,I10*1000000)/1000) -> 213.2729065 | P10: =IF(H10<CO2_TC(),HG_T1(H10)/1000,H_TP1(H10,I10*1000000)/1000) -> 427.2438695 | Q10: =IF(H10<CO2_TC(),rhol_t1(H10),rho_tp1(H10,I10*1000000)) -> 894.0210709 | R10: =IF(H10<CO2_TC(),rhog_T1(H10),rho_tp1(H10,I10*1000000)) -> 115.739772 | S10: =IF(H10<CO2_TC(),sl_t1(H10)/1000,s_tp1(H10,I10*1000000)/1000) -> 1.046068924 | T10: =IF(H10<CO2_TC(),sG_T1(H10)/1000,s_tp1(H10,I10*1000000)/1000) -> 1.814498469
G11: 1 | H11: =Tsat_P1(I11*1000000) -> 5.300336939 | I11: =I10 -> 4 | J11: =HG_T1(H11)/1000 -> 427.2437543 | K11: =IF(AND(J11>O11,J11<P11),(J11-O11)/(P11-O11),1) -> 1 | L11: =sG_T1(H11)/1000 -> 1.814497601 | M11: =rhog_T1(H11) -> 115.7403102 | N11: Saturated vapor | O11: =IF(H11<CO2_TC(),HL_t1(H11)/1000,H_TP1(H11,I11*1000000)/1000) -> 213.2732753 | P11: =IF(H11<CO2_TC(),HG_T1(H11)/1000,H_TP1(H11,I11*1000000)/1000) -> 427.2437543 | Q11: =IF(H11<CO2_TC(),rhol_t1(H11),rho_tp1(H11,I11*1000000)) -> 894.0201203 | R11: =IF(H11<CO2_TC(),rhog_T1(H11),rho_tp1(H11,I11*1000000)) -> 115.7403102 | S11: =IF(H11<CO2_TC(),sl_t1(H11)/1000,s_tp1(H11,I11*1000000)/1000) -> 1.04607019 | T11: =IF(H11<CO2_TC(),sG_T1(H11)/1000,s_tp1(H11,I11*1000000)/1000) -> 1.814497601
J14: Solvent Flow Rate | L14: 0.3 | M14: kg/s
J17: Heating and Cooling Requirements
J18: Q32 | K18: =(J7-J6)*L14 -> -44.8257813 | L18: kW
J19: Q56 | K19: =(J10-J9)*L14 -> 34.26136217 | L19: kW
T21: Tables for the Point-to-Point curves in the above plots.
J22: Electrical Energy Requirements
J23: W21 | K23: =(J6-J11)*L14 -> 10.56445369 | L23: kW
T24: P [MPa] | U24: T [C] | V24: rho [kg/m3] | W24: S [kJ/kg K] | X24: H [kJ/kg]
S25: Path 1-2 | T25: =$I$11 -> 4 | U25: =T_PS1(T25*1000000,W25*1000) -> 5.300193687 | V25: =rho_tp1(U25,T25*1000000) -> 115.739772 | W25: =$L$11 -> 1.814497601
T26: =T25+($I$6-$I$11)/10 -> 4.6 | U26: 15.20857031 | V26: 129.2462369 | W26: 1.814497601
T27: 5.2 | U27: 24.17368908 | V27: 142.2627641 | W27: 1.814497601
T28: 5.8 | U28: 32.36241625 | V28: 154.8225854 | W28: 1.814497601
T29: 6.4 | U29: 39.8995802 | V29: 166.9507915 | W29: 1.814497601
T30: 7 | U30: 46.88039572 | V30: 178.6701582 | W30: 1.814497601
T31: 7.6 | U31: 53.37990928 | V31: 190.0021716 | W31: 1.814497601
T32: 8.2 | U32: 59.45891027 | V32: 200.9661379 | W32: 1.814497601
T33: 8.8 | U33: 65.16736324 | V33: 211.5791232 | W33: 1.814497601
T34: 9.4 | U34: 70.54669107 | V34: 221.8566044 | W34: 1.814497601
T35: 10 | U35: 75.63155751 | V35: 231.8130486 | W35: 1.814497601
S36: Path 2-3 | T36: =$I$6 -> 10 | U36: =$H$6 -> 75.63155751 | V36: 231.8130486 | W36: =s_tp1(U36,T36*1000000)/1000 -> 1.814497601
T37: 10 | U37: =U36+($H$7-$H$6)/10 -> 72.06840176 | V37: 241.4701162 | W37: =s_tp1(U37,T37*1000000)/1000 -> 1.793409657
T38: 10 | U38: 68.505246 | V38: 252.7101 | W38: =s_tp1(U38,T38*1000000)/1000 -> 1.770490681
T39: 10 | U39: 64.94209025 | V39: 266.0884279 | W39: =s_tp1(U39,T39*1000000)/1000 -> 1.745190474
T40: 10 | U40: 61.3789345 | V40: 282.494617 | W40: =s_tp1(U40,T40*1000000)/1000 -> 1.716661524
T41: 10 | U41: 57.81577875 | V41: 303.4614298 | W41: =s_tp1(U41,T41*1000000)/1000 -> 1.683515997
T42: 10 | U42: 54.252623 | V42: 331.878329 | W42: =s_tp1(U42,T42*1000000)/1000 -> 1.643314896
T43: 10 | U43: 50.68946725 | V43: 373.7517078 | W43: =s_tp1(U43,T43*1000000)/1000 -> 1.591486374
T44: 10 | U44: 47.1263115 | V44: 441.51701 | W44: =s_tp1(U44,T44*1000000)/1000 -> 1.52015708
T45: 10 | U45: 43.56315575 | V45: 539.7638339 | W45: =s_tp1(U45,T45*1000000)/1000 -> 1.431697404
T46: 10 | U46: 40 | V46: 628.611562 | W46: =s_tp1(U46,T46*1000000)/1000 -> 1.356236635 | Y46: X | Z46: HL | AA46: HG | AB46: SL | AC46: SG | AD46: RHOL | AE46: RHOG
S47: Path 3-4-5 | T47: =$I$7 -> 10 | U47: =IF(AND(Y47>0,Y47<1),Tsat_P1(T47*1000000),T_PH1(T47*1000000,X47*1000)) -> 40 | V47: =IF(Y47=1,rho_tp1(U47,T47*1000000),Y47*AE47+(1-Y47)*AD47) -> 628.611562 | W47: =IF(Y47=1,s_tp1(U47,T47*1000000)/1000,Y47*AC47+(1-Y47)*AB47) -> 1.356236635 | X47: =$J$7 -> 313.0393289 | Y47: =IF(AND(X47>Z47,X47<AA47),(X47-Z47)/(AA47-Z47),1) -> 1 | Z47: =IF(T47*1000000<CO2_PC(),HL_t1(Tsat_P1(T47*1000000))/1000,0) -> 0 | AA47: =IF(T47*1000000<CO2_PC(),HG_T1(Tsat_P1(T47*1000000))/1000,0) -> 0 | AB47: =IF(U47<CO2_TC(),sl_t1(U47)/1000,s_tp1(U47,T47*1000000)/1000) -> 1.356236635 | AC47: =IF(U47<CO2_TC(),sG_T1(U47)/1000,s_tp1(U47,T47*1000000)/1000) -> 1.356236635 | AD47: =IF(U47<CO2_TC(),rhol_t1(U47),rho_tp1(U47,T47*1000000)) -> 628.611562 | AE47: =IF(U47<CO2_TC(),rhog_T1(U47),rho_tp1(U47,T47*1000000)) -> 628.611562
T48: =T47+($I$9-$I$7)/10 -> 9.4 | U48: 38.32264358 | V48: 616.1968995 | W48: =IF(Y48=1,s_tp1(U48,T48*1000000)/1000,Y48*AC48+(1-Y48)*AB48) -> 1.359322759 | X48: 313.0393289 | Y48: 1 | Z48: =IF(T48*1000000<CO2_PC(),HL_t1(Tsat_P1(T48*1000000))/1000,0) -> 0 | AA48: =IF(T48*1000000<CO2_PC(),HG_T1(Tsat_P1(T48*1000000))/1000,0) -> 0 | AB48: =IF(U48<CO2_TC(),sl_t1(U48)/1000,s_tp1(U48,T48*1000000)/1000) -> 1.359322759 | AC48: =IF(U48<CO2_TC(),sG_T1(U48)/1000,s_tp1(U48,T48*1000000)/1000) -> 1.359322759 | AD48: =IF(U48<CO2_TC(),rhol_t1(U48),rho_tp1(U48,T48*1000000)) -> 616.1968995 | AE48: =IF(U48<CO2_TC(),rhog_T1(U48),rho_tp1(U48,T48*1000000)) -> 616.1968995
T49: 8.8 | U49: 36.45689111 | V49: 602.2385104 | W49: =IF(Y49=1,s_tp1(U49,T49*1000000)/1000,Y49*AC49+(1-Y49)*AB49) -> 1.362493472 | X49: 313.0393289 | Y49: 1 | Z49: =IF(T49*1000000<CO2_PC(),HL_t1(Tsat_P1(T49*1000000))/1000,0) -> 0 | AA49: =IF(T49*1000000<CO2_PC(),HG_T1(Tsat_P1(T49*1000000))/1000,0) -> 0 | AB49: =IF(U49<CO2_TC(),sl_t1(U49)/1000,s_tp1(U49,T49*1000000)/1000) -> 1.362493472 | AC49: =IF(U49<CO2_TC(),sG_T1(U49)/1000,s_tp1(U49,T49*1000000)/1000) -> 1.362493472 | AD49: =IF(U49<CO2_TC(),rhol_t1(U49),rho_tp1(U49,T49*1000000)) -> 602.2385104 | AE49: =IF(U49<CO2_TC(),rhog_T1(U49),rho_tp1(U49,T49*1000000)) -> 602.2385104
T50: 8.2 | U50: 34.35328598 | V50: 586.2187823 | W50: =IF(Y50=1,s_tp1(U50,T50*1000000)/1000,Y50*AC50+(1-Y50)*AB50) -> 1.365764793 | X50: 313.0393289 | Y50: 1 | Z50: =IF(T50*1000000<CO2_PC(),HL_t1(Tsat_P1(T50*1000000))/1000,0) -> 0 | AA50: =IF(T50*1000000<CO2_PC(),HG_T1(Tsat_P1(T50*1000000))/1000,0) -> 0 | AB50: =IF(U50<CO2_TC(),sl_t1(U50)/1000,s_tp1(U50,T50*1000000)/1000) -> 1.365764793 | AC50: =IF(U50<CO2_TC(),sG_T1(U50)/1000,s_tp1(U50,T50*1000000)/1000) -> 1.365764793 | AD50: =IF(U50<CO2_TC(),rhol_t1(U50),rho_tp1(U50,T50*1000000)) -> 586.2187823 | AE50: =IF(U50<CO2_TC(),rhog_T1(U50),rho_tp1(U50,T50*1000000)) -> 586.2187823
T51: 7.6 | U51: 31.93545161 | V51: 567.0549575 | W51: =IF(Y51=1,s_tp1(U51,T51*1000000)/1000,Y51*AC51+(1-Y51)*AB51) -> 1.369159776 | X51: 313.0393289 | Y51: 1 | Z51: =IF(T51*1000000<CO2_PC(),HL_t1(Tsat_P1(T51*1000000))/1000,0) -> 0 | AA51: =IF(T51*1000000<CO2_PC(),HG_T1(Tsat_P1(T51*1000000))/1000,0) -> 0 | AB51: =IF(U51<CO2_TC(),sl_t1(U51)/1000,s_tp1(U51,T51*1000000)/1000) -> 1.369159776 | AC51: =IF(U51<CO2_TC(),sG_T1(U51)/1000,s_tp1(U51,T51*1000000)/1000) -> 1.369159776 | AD51: =IF(U51<CO2_TC(),rhol_t1(U51),rho_tp1(U51,T51*1000000)) -> 567.0549575 | AE51: =IF(U51<CO2_TC(),rhog_T1(U51),rho_tp1(U51,T51*1000000)) -> 567.0549575
T52: 7 | U52: 28.68314121 | V52: 561.1647846 | W52: =IF(Y52=1,s_tp1(U52,T52*1000000)/1000,Y52*AC52+(1-Y52)*AB52) -> 1.372787168 | X52: 313.0393289 | Y52: 0.2306858916 | Z52: =IF(T52*1000000<CO2_PC(),HL_t1(Tsat_P1(T52*1000000))/1000,0) -> 293.8864959 | AA52: =IF(T52*1000000<CO2_PC(),HG_T1(Tsat_P1(T52*1000000))/1000,0) -> 376.9120893 | AB52: =IF(U52<CO2_TC(),sl_t1(U52)/1000,s_tp1(U52,T52*1000000)/1000) -> 1.309332144 | AC52: =IF(U52<CO2_TC(),sG_T1(U52)/1000,s_tp1(U52,T52*1000000)/1000) -> 1.584403252 | AD52: =IF(U52<CO2_TC(),rhol_t1(U52),rho_tp1(U52,T52*1000000)) -> 638.2689255 | AE52: =IF(U52<CO2_TC(),rhog_T1(U52),rho_tp1(U52,T52*1000000)) -> 304.0302758
T53: 6.4 | U53: 24.76747378 | V53: 560.7564082 | W53: =IF(Y53=1,s_tp1(U53,T53*1000000)/1000,Y53*AC53+(1-Y53)*AB53) -> 1.377042749 | X53: 313.0393289 | Y53: 0.3231790036 | Z53: =IF(T53*1000000<CO2_PC(),HL_t1(Tsat_P1(T53*1000000))/1000,0) -> 273.7926793 | AA53: =IF(T53*1000000<CO2_PC(),HG_T1(Tsat_P1(T53*1000000))/1000,0) -> 395.232034 | AB53: =IF(U53<CO2_TC(),sl_t1(U53)/1000,s_tp1(U53,T53*1000000)/1000) -> 1.24530615 | AC53: =IF(U53<CO2_TC(),sG_T1(U53)/1000,s_tp1(U53,T53*1000000)/1000) -> 1.652933494 | AD53: =IF(U53<CO2_TC(),rhol_t1(U53),rho_tp1(U53,T53*1000000)) -> 713.9703183 | AE53: =IF(U53<CO2_TC(),rhog_T1(U53),rho_tp1(U53,T53*1000000)) -> 239.8865803
T54: 5.8 | U54: 20.52402267 | V54: 556.2207213 | W54: =IF(Y54=1,s_tp1(U54,T54*1000000)/1000,Y54*AC54+(1-Y54)*AB54) -> 1.382085492 | X54: 313.0393289 | Y54: 0.3714732056 | Z54: =IF(T54*1000000<CO2_PC(),HL_t1(Tsat_P1(T54*1000000))/1000,0) -> 257.6645709 | AA54: =IF(T54*1000000<CO2_PC(),HG_T1(Tsat_P1(T54*1000000))/1000,0) -> 406.7325446 | AB54: =IF(U54<CO2_TC(),sl_t1(U54)/1000,s_tp1(U54,T54*1000000)/1000) -> 1.193526684 | AC54: =IF(U54<CO2_TC(),sG_T1(U54)/1000,s_tp1(U54,T54*1000000)/1000) -> 1.701124017 | AD54: =IF(U54<CO2_TC(),rhol_t1(U54),rho_tp1(U54,T54*1000000)) -> 767.712137 | AE54: =IF(U54<CO2_TC(),rhog_T1(U54),rho_tp1(U54,T54*1000000)) -> 198.3805875
N55: Tables for Saturation Curves in the above plots. | T55: 5.2 | U55: 15.91252576 | V55: 549.5097861 | W55: =IF(Y55=1,s_tp1(U55,T55*1000000)/1000,Y55*AC55+(1-Y55)*AB55) -> 1.388115259 | X55: 313.0393289 | Y55: 0.4074933167 | Z55: =IF(T55*1000000<CO2_PC(),HL_t1(Tsat_P1(T55*1000000))/1000,0) -> 242.7413165 | AA55: =IF(T55*1000000<CO2_PC(),HG_T1(Tsat_P1(T55*1000000))/1000,0) -> 415.2546058 | AB55: =IF(U55<CO2_TC(),sl_t1(U55)/1000,s_tp1(U55,T55*1000000)/1000) -> 1.144923888 | AC55: =IF(U55<CO2_TC(),sG_T1(U55)/1000,s_tp1(U55,T55*1000000)/1000) -> 1.741722317 | AD55: =IF(U55<CO2_TC(),rhol_t1(U55),rho_tp1(U55,T55*1000000)) -> 813.1755491 | AE55: =IF(U55<CO2_TC(),rhog_T1(U55),rho_tp1(U55,T55*1000000)) -> 166.1323899
T56: 4.6 | U56: 10.86895161 | V56: 541.1271513 | W56: =IF(Y56=1,s_tp1(U56,T56*1000000)/1000,Y56*AC56+(1-Y56)*AB56) -> 1.395404778 | X56: 313.0393289 | Y56: 0.4381498898 | Z56: =IF(T56*1000000<CO2_PC(),HL_t1(Tsat_P1(T56*1000000))/1000,0) -> 228.122778 | AA56: =IF(T56*1000000<CO2_PC(),HG_T1(Tsat_P1(T56*1000000))/1000,0) -> 421.9298584 | AB56: =IF(U56<CO2_TC(),sl_t1(U56)/1000,s_tp1(U56,T56*1000000)/1000) -> 1.096425583 | AC56: =IF(U56<CO2_TC(),sG_T1(U56)/1000,s_tp1(U56,T56*1000000)/1000) -> 1.77879297 | AD56: =IF(U56<CO2_TC(),rhol_t1(U56),rho_tp1(U56,T56*1000000)) -> 854.5754442 | AE56: =IF(U56<CO2_TC(),rhog_T1(U56),rho_tp1(U56,T56*1000000)) -> 139.1848892
T57: 4 | U57: 5.300336939 | V57: 531.1387283 | W57: =IF(Y57=1,s_tp1(U57,T57*1000000)/1000,Y57*AC57+(1-Y57)*AB57) -> 1.404357794 | X57: 313.0393289 | Y57: 0.4662608323 | Z57: =IF(T57*1000000<CO2_PC(),HL_t1(Tsat_P1(T57*1000000))/1000,0) -> 213.2732753 | AA57: =IF(T57*1000000<CO2_PC(),HG_T1(Tsat_P1(T57*1000000))/1000,0) -> 427.2437543 | AB57: =IF(U57<CO2_TC(),sl_t1(U57)/1000,s_tp1(U57,T57*1000000)/1000) -> 1.04607019 | AC57: =IF(U57<CO2_TC(),sG_T1(U57)/1000,s_tp1(U57,T57*1000000)/1000) -> 1.814497601 | AD57: =IF(U57<CO2_TC(),rhol_t1(U57),rho_tp1(U57,T57*1000000)) -> 894.0201203 | AE57: =IF(U57<CO2_TC(),rhog_T1(U57),rho_tp1(U57,T57*1000000)) -> 115.7403102
J58: T [C] | K58: Psat [MPa] | L58: rhoL [kg/m3] | M58: rhoG [kg/m3] | O58: HL [kJ/kg] | P58: HG [kJ/kg] | Q58: SL [kJ/kg K] | R58: SG [kJ/kg K] | S58: Path 5-6 | T58: =$I$11 -> 4 | U58: =$H$11 -> 5.300336939 | V58: =rhog_T1(U58) -> 115.7403102 | W58: =sG_T1(U58)/1000 -> 1.814497601
J59: 0 | K59: =psat_t1(J59)/1000000 -> 3.485028347 | L59: =rhol_t1(J59) -> 927.4062248 | M59: =rhog_T1(J59) -> 97.64369775 | O59: =HL_t1(J59)/1000 -> 200 | P59: =HG_T1(J59)/1000 -> 430.8923967 | Q59: =sl_t1(J59)/1000 -> 1 | R59: =sG_T1(J59)/1000 -> 1.845287256
J60: 0.1 | K60: 3.494263364 | L60: =rhol_t1(J60) -> 926.8063015 | M60: =rhog_T1(J60) -> 97.95455742 | O60: =HL_t1(J60)/1000 -> 200.2441914 | P60: =HG_T1(J60)/1000 -> 430.8339416 | Q60: =sl_t1(J60)/1000 -> 1.000857265 | R60: =sG_T1(J60)/1000 -> 1.844727668
J61: 0.2 | K61: 3.503516432 | L61: =rhol_t1(J61) -> 926.2053314 | M61: =rhog_T1(J61) -> 98.26648768 | O61: =HL_t1(J61)/1000 -> 200.4886008 | P61: =HG_T1(J61)/1000 -> 430.7751199 | Q61: =sl_t1(J61)/1000 -> 1.00171492 | R61: =sG_T1(J61)/1000 -> 1.844167368
J62: 0.3 | K62: 3.512787577 | L62: =rhol_t1(J62) -> 925.6033089 | M62: =rhog_T1(J62) -> 98.57949406 | O62: =HL_t1(J62)/1000 -> 200.7332296 | P62: =HG_T1(J62)/1000 -> 430.71593 | Q62: =sl_t1(J62)/1000 -> 1.002572969 | R62: =sG_T1(J62)/1000 -> 1.843606348
J63: 0.4 | K63: 3.522076825 | L63: =rhol_t1(J63) -> 925.0002285 | M63: =rhog_T1(J63) -> 98.8935821 | O63: =HL_t1(J63)/1000 -> 200.9780788 | P63: =HG_T1(J63)/1000 -> 430.6563702 | Q63: =sl_t1(J63)/1000 -> 1.003431416 | R63: =sG_T1(J63)/1000 -> 1.843044605
J64: 0.5 | K64: 3.5313842 | L64: =rhol_t1(J64) -> 924.3960845 | M64: =rhog_T1(J64) -> 99.20875742 | O64: =HL_t1(J64)/1000 -> 201.2231495 | P64: =HG_T1(J64)/1000 -> 430.5964387 | Q64: =sl_t1(J64)/1000 -> 1.004290264 | R64: =sG_T1(J64)/1000 -> 1.842482131
J65: 0.6 | K65: 3.540709729 | L65: =rhol_t1(J65) -> 923.7908713 | M65: =rhog_T1(J65) -> 99.52502567 | O65: =HL_t1(J65)/1000 -> 201.468443 | P65: =HG_T1(J65)/1000 -> 430.5361336 | Q65: =sl_t1(J65)/1000 -> 1.005149517 | R65: =sG_T1(J65)/1000 -> 1.841918922
J66: 0.7 | K66: 3.550053435 | L66: =rhol_t1(J66) -> 923.184583 | M66: =rhog_T1(J66) -> 99.84239254 | O66: =HL_t1(J66)/1000 -> 201.7139603 | P66: =HG_T1(J66)/1000 -> 430.4754533 | Q66: =sl_t1(J66)/1000 -> 1.006009179 | R66: =sG_T1(J66)/1000 -> 1.841354971
J67: 0.8 | K67: 3.559415346 | L67: =rhol_t1(J67) -> 922.577214 | M67: =rhog_T1(J67) -> 100.1608638 | O67: =HL_t1(J67)/1000 -> 201.9597028 | P67: =HG_T1(J67)/1000 -> 430.4143959 | Q67: =sl_t1(J67)/1000 -> 1.006869254 | R67: =sG_T1(J67)/1000 -> 1.840790273
J68: 0.9 | K68: 3.568795486 | L68: =rhol_t1(J68) -> 921.9687583 | M68: =rhog_T1(J68) -> 100.4804452 | O68: =HL_t1(J68)/1000 -> 202.2056716 | P68: =HG_T1(J68)/1000 -> 430.3529597 | Q68: =sl_t1(J68)/1000 -> 1.007729745 | R68: =sG_T1(J68)/1000 -> 1.840224821
J69: 1 | K69: 3.57819388 | L69: =rhol_t1(J69) -> 921.3592102 | M69: =rhog_T1(J69) -> 100.8011426 | O69: =HL_t1(J69)/1000 -> 202.4518678 | P69: =HG_T1(J69)/1000 -> 430.2911427 | Q69: =sl_t1(J69)/1000 -> 1.008590656 | R69: =sG_T1(J69)/1000 -> 1.83965861
J70: 1.1 | K70: 3.587610555 | L70: =rhol_t1(J70) -> 920.7485636 | M70: =rhog_T1(J70) -> 101.122962 | O70: =HL_t1(J70)/1000 -> 202.6982927 | P70: =HG_T1(J70)/1000 -> 430.2289431 | Q70: =sl_t1(J70)/1000 -> 1.009451991 | R70: =sG_T1(J70)/1000 -> 1.839091633
J71: 1.2 | K71: 3.597045535 | L71: =rhol_t1(J71) -> 920.1368125 | M71: =rhog_T1(J71) -> 101.4459092 | O71: =HL_t1(J71)/1000 -> 202.9449476 | P71: =HG_T1(J71)/1000 -> 430.166359 | Q71: =sl_t1(J71)/1000 -> 1.010313754 | R71: =sG_T1(J71)/1000 -> 1.838523885
J72: 1.3 | K72: 3.606498848 | L72: =rhol_t1(J72) -> 919.523951 | M72: =rhog_T1(J72) -> 101.7699903 | O72: =HL_t1(J72)/1000 -> 203.1918336 | P72: =HG_T1(J72)/1000 -> 430.1033887 | Q72: =sl_t1(J72)/1000 -> 1.011175949 | R72: =sG_T1(J72)/1000 -> 1.83795536
J73: 1.4 | K73: 3.615970518 | L73: =rhol_t1(J73) -> 918.909973 | M73: =rhog_T1(J73) -> 102.0952113 | O73: =HL_t1(J73)/1000 -> 203.4389521 | P73: =HG_T1(J73)/1000 -> 430.0400301 | Q73: =sl_t1(J73)/1000 -> 1.01203858 | R73: =sG_T1(J73)/1000 -> 1.83738605
J74: 1.5 | K74: 3.625460571 | L74: =rhol_t1(J74) -> 918.2948722 | M74: =rhog_T1(J74) -> 102.4215784 | O74: =HL_t1(J74)/1000 -> 203.6863042 | P74: =HG_T1(J74)/1000 -> 429.9762814 | Q74: =sl_t1(J74)/1000 -> 1.012901651 | R74: =sG_T1(J74)/1000 -> 1.836815951
J75: 1.6 | K75: 3.634969033 | L75: =rhol_t1(J75) -> 917.6786425 | M75: =rhog_T1(J75) -> 102.7490976 | O75: =HL_t1(J75)/1000 -> 203.9338912 | P75: =HG_T1(J75)/1000 -> 429.9121407 | Q75: =sl_t1(J75)/1000 -> 1.013765165 | R75: =sG_T1(J75)/1000 -> 1.836245055
J76: 1.7 | K76: 3.64449593 | L76: =rhol_t1(J76) -> 917.0612777 | M76: =rhog_T1(J76) -> 103.0777753 | O76: =HL_t1(J76)/1000 -> 204.1817144 | P76: =HG_T1(J76)/1000 -> 429.8476059 | Q76: =sl_t1(J76)/1000 -> 1.014629127 | R76: =sG_T1(J76)/1000 -> 1.835673357
J77: 1.8 | K77: 3.654041288 | L77: =rhol_t1(J77) -> 916.4427714 | M77: =rhog_T1(J77) -> 103.4076176 | O77: =HL_t1(J77)/1000 -> 204.4297751 | P77: =HG_T1(J77)/1000 -> 429.7826752 | Q77: =sl_t1(J77)/1000 -> 1.015493542 | R77: =sG_T1(J77)/1000 -> 1.83510085
J78: 1.9 | K78: 3.663605132 | L78: =rhol_t1(J78) -> 915.8231173 | M78: =rhog_T1(J78) -> 103.7386309 | O78: =HL_t1(J78)/1000 -> 204.6780745 | P78: =HG_T1(J78)/1000 -> 429.7173465 | Q78: =sl_t1(J78)/1000 -> 1.016358412 | R78: =sG_T1(J78)/1000 -> 1.834527527
J79: 2 | K79: 3.67318749 | L79: =rhol_t1(J79) -> 915.2023089 | M79: =rhog_T1(J79) -> 104.0708216 | O79: =HL_t1(J79)/1000 -> 204.9266141 | P79: =HG_T1(J79)/1000 -> 429.6516179 | Q79: =sl_t1(J79)/1000 -> 1.017223742 | R79: =sG_T1(J79)/1000 -> 1.833953382
J80: 2.1 | K80: 3.682788388 | L80: =rhol_t1(J80) -> 914.5803397 | M80: =rhog_T1(J80) -> 104.4041961 | O80: =HL_t1(J80)/1000 -> 205.1753951 | P80: =HG_T1(J80)/1000 -> 429.5854873 | Q80: =sl_t1(J80)/1000 -> 1.018089537 | R80: =sG_T1(J80)/1000 -> 1.833378409
J81: 2.2 | K81: 3.69240785 | L81: =rhol_t1(J81) -> 913.9572033 | M81: =rhog_T1(J81) -> 104.738761 | O81: =HL_t1(J81)/1000 -> 205.4244188 | P81: =HG_T1(J81)/1000 -> 429.5189527 | Q81: =sl_t1(J81)/1000 -> 1.018955801 | R81: =sG_T1(J81)/1000 -> 1.832802601
J82: 2.3 | K82: 3.702045905 | L82: =rhol_t1(J82) -> 913.332893 | M82: =rhog_T1(J82) -> 105.0745227 | O82: =HL_t1(J82)/1000 -> 205.6736866 | P82: =HG_T1(J82)/1000 -> 429.4520121 | Q82: =sl_t1(J82)/1000 -> 1.019822537 | R82: =sG_T1(J82)/1000 -> 1.832225951
J83: 2.4 | K83: 3.711702577 | L83: =rhol_t1(J83) -> 912.7074022 | M83: =rhog_T1(J83) -> 105.4114878 | O83: =HL_t1(J83)/1000 -> 205.9231999 | P83: =HG_T1(J83)/1000 -> 429.3846634 | Q83: =sl_t1(J83)/1000 -> 1.02068975 | R83: =sG_T1(J83)/1000 -> 1.831648453
J84: 2.5 | K84: 3.721377894 | L84: =rhol_t1(J84) -> 912.0807241 | M84: =rhog_T1(J84) -> 105.7496632 | O84: =HL_t1(J84)/1000 -> 206.17296 | P84: =HG_T1(J84)/1000 -> 429.3169046 | Q84: =sl_t1(J84)/1000 -> 1.021557445 | R84: =sG_T1(J84)/1000 -> 1.8310701
J85: 2.6 | K85: 3.731071882 | L85: =rhol_t1(J85) -> 911.452852 | M85: =rhog_T1(J85) -> 106.0890554 | O85: =HL_t1(J85)/1000 -> 206.4229682 | P85: =HG_T1(J85)/1000 -> 429.2487334 | Q85: =sl_t1(J85)/1000 -> 1.022425626 | R85: =sG_T1(J85)/1000 -> 1.830490884
J86: 2.7 | K86: 3.740784567 | L86: =rhol_t1(J86) -> 910.823779 | M86: =rhog_T1(J86) -> 106.4296713 | O86: =HL_t1(J86)/1000 -> 206.673226 | P86: =HG_T1(J86)/1000 -> 429.1801478 | Q86: =sl_t1(J86)/1000 -> 1.023294297 | R86: =sG_T1(J86)/1000 -> 1.8299108
J87: 2.8 | K87: 3.750515976 | L87: =rhol_t1(J87) -> 910.1934982 | M87: =rhog_T1(J87) -> 106.7715178 | O87: =HL_t1(J87)/1000 -> 206.9237349 | P87: =HG_T1(J87)/1000 -> 429.1111456 | Q87: =sl_t1(J87)/1000 -> 1.024163463 | R87: =sG_T1(J87)/1000 -> 1.829329841
J88: 2.9 | K88: 3.760266135 | L88: =rhol_t1(J88) -> 909.5620026 | M88: =rhog_T1(J88) -> 107.1146017 | O88: =HL_t1(J88)/1000 -> 207.1744961 | P88: =HG_T1(J88)/1000 -> 429.0417247 | Q88: =sl_t1(J88)/1000 -> 1.025033127 | R88: =sG_T1(J88)/1000 -> 1.828747998
J89: 3 | K89: 3.770035072 | L89: =rhol_t1(J89) -> 908.9292853 | M89: =rhog_T1(J89) -> 107.4589301 | O89: =HL_t1(J89)/1000 -> 207.4255111 | P89: =HG_T1(J89)/1000 -> 428.971883 | Q89: =sl_t1(J89)/1000 -> 1.025903296 | R89: =sG_T1(J89)/1000 -> 1.828165266
J90: 3.1 | K90: 3.779822814 | L90: =rhol_t1(J90) -> 908.295339 | M90: =rhog_T1(J90) -> 107.80451 | O90: =HL_t1(J90)/1000 -> 207.6767814 | P90: =HG_T1(J90)/1000 -> 428.9016181 | Q90: =sl_t1(J90)/1000 -> 1.026773973 | R90: =sG_T1(J90)/1000 -> 1.827581636
J91: 3.2 | K91: 3.789629385 | L91: =rhol_t1(J91) -> 907.6601568 | M91: =rhog_T1(J91) -> 108.1513485 | O91: =HL_t1(J91)/1000 -> 207.9283085 | P91: =HG_T1(J91)/1000 -> 428.8309279 | Q91: =sl_t1(J91)/1000 -> 1.027645162 | R91: =sG_T1(J91)/1000 -> 1.826997103
J92: 3.3 | K92: 3.799454815 | L92: =rhol_t1(J92) -> 907.0237312 | M92: =rhog_T1(J92) -> 108.4994529 | O92: =HL_t1(J92)/1000 -> 208.1800937 | P92: =HG_T1(J92)/1000 -> 428.7598101 | Q92: =sl_t1(J92)/1000 -> 1.028516869 | R92: =sG_T1(J92)/1000 -> 1.826411658
J93: 3.4 | K93: 3.80929913 | L93: =rhol_t1(J93) -> 906.386055 | M93: =rhog_T1(J93) -> 108.8488302 | O93: =HL_t1(J93)/1000 -> 208.4321387 | P93: =HG_T1(J93)/1000 -> 428.6882626 | Q93: =sl_t1(J93)/1000 -> 1.029389098 | R93: =sG_T1(J93)/1000 -> 1.825825295
J94: 3.5 | K94: 3.819162356 | L94: =rhol_t1(J94) -> 905.7471209 | M94: =rhog_T1(J94) -> 109.1994879 | O94: =HL_t1(J94)/1000 -> 208.6844448 | P94: =HG_T1(J94)/1000 -> 428.6162829 | Q94: =sl_t1(J94)/1000 -> 1.030261854 | R94: =sG_T1(J94)/1000 -> 1.825238005
J95: 3.6 | K95: 3.829044522 | L95: =rhol_t1(J95) -> 905.1069214 | M95: =rhog_T1(J95) -> 109.5514334 | O95: =HL_t1(J95)/1000 -> 208.9370135 | P95: =HG_T1(J95)/1000 -> 428.5438688 | Q95: =sl_t1(J95)/1000 -> 1.031135142 | R95: =sG_T1(J95)/1000 -> 1.824649782
J96: 3.7 | K96: 3.838945653 | L96: =rhol_t1(J96) -> 904.465449 | M96: =rhog_T1(J96) -> 109.9046741 | O96: =HL_t1(J96)/1000 -> 209.1898465 | P96: =HG_T1(J96)/1000 -> 428.4710179 | Q96: =sl_t1(J96)/1000 -> 1.032008966 | R96: =sG_T1(J96)/1000 -> 1.824060619
J97: 3.8 | K97: 3.848865777 | L97: =rhol_t1(J97) -> 903.822696 | M97: =rhog_T1(J97) -> 110.2592175 | O97: =HL_t1(J97)/1000 -> 209.4429453 | P97: =HG_T1(J97)/1000 -> 428.397728 | Q97: =sl_t1(J97)/1000 -> 1.032883332 | R97: =sG_T1(J97)/1000 -> 1.823470506
J98: 3.9 | K98: 3.858804923 | L98: =rhol_t1(J98) -> 903.178655 | M98: =rhog_T1(J98) -> 110.6150713 | O98: =HL_t1(J98)/1000 -> 209.6963113 | P98: =HG_T1(J98)/1000 -> 428.3239967 | Q98: =sl_t1(J98)/1000 -> 1.033758243 | R98: =sG_T1(J98)/1000 -> 1.822879438
J99: 4 | K99: 3.868763116 | L99: =rhol_t1(J99) -> 902.533318 | M99: =rhog_T1(J99) -> 110.9722431 | O99: =HL_t1(J99)/1000 -> 209.9499462 | P99: =HG_T1(J99)/1000 -> 428.2498215 | Q99: =sl_t1(J99)/1000 -> 1.034633706 | R99: =sG_T1(J99)/1000 -> 1.822287406
J100: 4.1 | K100: 3.878740384 | L100: =rhol_t1(J100) -> 901.8866774 | M100: =rhog_T1(J100) -> 111.3307406 | O100: =HL_t1(J100)/1000 -> 210.2038515 | P100: =HG_T1(J100)/1000 -> 428.1752001 | Q100: =sl_t1(J100)/1000 -> 1.035509725 | R100: =sG_T1(J100)/1000 -> 1.821694402
J101: 4.2 | K101: 3.888736756 | L101: =rhol_t1(J101) -> 901.2387252 | M101: =rhog_T1(J101) -> 111.6905717 | O101: =HL_t1(J101)/1000 -> 210.4580289 | P101: =HG_T1(J101)/1000 -> 428.10013 | Q101: =sl_t1(J101)/1000 -> 1.036386305 | R101: =sG_T1(J101)/1000 -> 1.821100419
J102: 4.3 | K102: 3.898752258 | L102: =rhol_t1(J102) -> 900.5894535 | M102: =rhog_T1(J102) -> 112.0517442 | O102: =HL_t1(J102)/1000 -> 210.71248 | P102: =HG_T1(J102)/1000 -> 428.0246087 | Q102: =sl_t1(J102)/1000 -> 1.037263451 | R102: =sG_T1(J102)/1000 -> 1.820505448
J103: 4.4 | K103: 3.908786918 | L103: =rhol_t1(J103) -> 899.9388543 | M103: =rhog_T1(J103) -> 112.4142662 | O103: =HL_t1(J103)/1000 -> 210.9672063 | P103: =HG_T1(J103)/1000 -> 427.9486338 | Q103: =sl_t1(J103)/1000 -> 1.038141169 | R103: =sG_T1(J103)/1000 -> 1.819909482
J104: 4.5 | K104: 3.918840764 | L104: =rhol_t1(J104) -> 899.2869194 | M104: =rhog_T1(J104) -> 112.7781457 | O104: =HL_t1(J104)/1000 -> 211.2222096 | P104: =HG_T1(J104)/1000 -> 427.8722028 | Q104: =sl_t1(J104)/1000 -> 1.039019463 | R104: =sG_T1(J104)/1000 -> 1.819312513
J105: 4.6 | K105: 3.928913823 | L105: =rhol_t1(J105) -> 898.6336407 | M105: =rhog_T1(J105) -> 113.1433909 | O105: =HL_t1(J105)/1000 -> 211.4774914 | P105: =HG_T1(J105)/1000 -> 427.7953131 | Q105: =sl_t1(J105)/1000 -> 1.039898339 | R105: =sG_T1(J105)/1000 -> 1.818714532
J106: 4.7 | K106: 3.939006124 | L106: =rhol_t1(J106) -> 897.9790098 | M106: =rhog_T1(J106) -> 113.5100098 | O106: =HL_t1(J106)/1000 -> 211.7330535 | P106: =HG_T1(J106)/1000 -> 427.7179622 | Q106: =sl_t1(J106)/1000 -> 1.040777803 | R106: =sG_T1(J106)/1000 -> 1.818115531
J107: 4.8 | K107: 3.949117695 | L107: =rhol_t1(J107) -> 897.3230184 | M107: =rhog_T1(J107) -> 113.8780109 | O107: =HL_t1(J107)/1000 -> 211.9888976 | P107: =HG_T1(J107)/1000 -> 427.6401475 | Q107: =sl_t1(J107)/1000 -> 1.041657858 | R107: =sG_T1(J107)/1000 -> 1.817515502
J108: 4.9 | K108: 3.959248562 | L108: =rhol_t1(J108) -> 896.6656582 | M108: =rhog_T1(J108) -> 114.2474025 | O108: =HL_t1(J108)/1000 -> 212.2450254 | P108: =HG_T1(J108)/1000 -> 427.5618665 | Q108: =sl_t1(J108)/1000 -> 1.042538512 | R108: =sG_T1(J108)/1000 -> 1.816914437
J109: 5 | K109: 3.969398756 | L109: =rhol_t1(J109) -> 896.0069205 | M109: =rhog_T1(J109) -> 114.618193 | O109: =HL_t1(J109)/1000 -> 212.5014385 | P109: =HG_T1(J109)/1000 -> 427.4831164 | Q109: =sl_t1(J109)/1000 -> 1.043419768 | R109: =sG_T1(J109)/1000 -> 1.816312327
J110: 5.1 | K110: 3.979568303 | L110: =rhol_t1(J110) -> 895.3467968 | M110: =rhog_T1(J110) -> 114.990391 | O110: =HL_t1(J110)/1000 -> 212.7581388 | P110: =HG_T1(J110)/1000 -> 427.4038946 | Q110: =sl_t1(J110)/1000 -> 1.044301634 | R110: =sG_T1(J110)/1000 -> 1.815709164
J111: 5.2 | K111: 3.989757232 | L111: =rhol_t1(J111) -> 894.6852783 | M111: =rhog_T1(J111) -> 115.3640052 | O111: =HL_t1(J111)/1000 -> 213.015128 | P111: =HG_T1(J111)/1000 -> 427.3241984 | Q111: =sl_t1(J111)/1000 -> 1.045184113 | R111: =sG_T1(J111)/1000 -> 1.815104939
J112: 5.3 | K112: 3.999965571 | L112: =rhol_t1(J112) -> 894.0223563 | M112: =rhog_T1(J112) -> 115.7390442 | O112: =HL_t1(J112)/1000 -> 213.2724079 | P112: =HG_T1(J112)/1000 -> 427.2440252 | Q112: =sl_t1(J112)/1000 -> 1.046067213 | R112: =sG_T1(J112)/1000 -> 1.814499643
J113: 5.4 | K113: 4.010193349 | L113: =rhol_t1(J113) -> 893.3580219 | M113: =rhog_T1(J113) -> 116.1155168 | O113: =HL_t1(J113)/1000 -> 213.5299803 | P113: =HG_T1(J113)/1000 -> 427.1633722 | Q113: =sl_t1(J113)/1000 -> 1.046950938 | R113: =sG_T1(J113)/1000 -> 1.813893267
J114: 5.5 | K114: 4.020440594 | L114: =rhol_t1(J114) -> 892.6922662 | M114: =rhog_T1(J114) -> 116.4934319 | O114: =HL_t1(J114)/1000 -> 213.787847 | P114: =HG_T1(J114)/1000 -> 427.0822366 | Q114: =sl_t1(J114)/1000 -> 1.047835295 | R114: =sG_T1(J114)/1000 -> 1.813285803
J115: 5.6 | K115: 4.030707335 | L115: =rhol_t1(J115) -> 892.02508 | M115: =rhog_T1(J115) -> 116.8727986 | O115: =HL_t1(J115)/1000 -> 214.0460098 | P115: =HG_T1(J115)/1000 -> 427.0006157 | Q115: =sl_t1(J115)/1000 -> 1.048720288 | R115: =sG_T1(J115)/1000 -> 1.812677242
J116: 5.7 | K116: 4.0409936 | L116: =rhol_t1(J116) -> 891.3564543 | M116: =rhog_T1(J116) -> 117.2536258 | O116: =HL_t1(J116)/1000 -> 214.3044706 | P116: =HG_T1(J116)/1000 -> 426.9185066 | Q116: =sl_t1(J116)/1000 -> 1.049605925 | R116: =sG_T1(J116)/1000 -> 1.812067575
J117: 5.8 | K117: 4.051299418 | L117: =rhol_t1(J117) -> 890.6863798 | M117: =rhog_T1(J117) -> 117.6359228 | O117: =HL_t1(J117)/1000 -> 214.5632313 | P117: =HG_T1(J117)/1000 -> 426.8359065 | Q117: =sl_t1(J117)/1000 -> 1.05049221 | R117: =sG_T1(J117)/1000 -> 1.811456792
J118: 5.9 | K118: 4.061624818 | L118: =rhol_t1(J118) -> 890.0148472 | M118: =rhog_T1(J118) -> 118.0196988 | O118: =HL_t1(J118)/1000 -> 214.8222937 | P118: =HG_T1(J118)/1000 -> 426.7528125 | Q118: =sl_t1(J118)/1000 -> 1.05137915 | R118: =sG_T1(J118)/1000 -> 1.810844885
J119: 6 | K119: 4.071969828 | L119: =rhol_t1(J119) -> 889.341847 | M119: =rhog_T1(J119) -> 118.4049632 | O119: =HL_t1(J119)/1000 -> 215.0816598 | P119: =HG_T1(J119)/1000 -> 426.6692217 | Q119: =sl_t1(J119)/1000 -> 1.052266751 | R119: =sG_T1(J119)/1000 -> 1.810231843
J120: 6.1 | K120: 4.082334479 | L120: =rhol_t1(J120) -> 888.6673697 | M120: =rhog_T1(J120) -> 118.7917254 | O120: =HL_t1(J120)/1000 -> 215.3413315 | P120: =HG_T1(J120)/1000 -> 426.5851312 | Q120: =sl_t1(J120)/1000 -> 1.053155018 | R120: =sG_T1(J120)/1000 -> 1.809617659
J121: 6.2 | K121: 4.092718797 | L121: =rhol_t1(J121) -> 887.9914057 | M121: =rhog_T1(J121) -> 119.1799949 | O121: =HL_t1(J121)/1000 -> 215.6013107 | P121: =HG_T1(J121)/1000 -> 426.500538 | Q121: =sl_t1(J121)/1000 -> 1.054043959 | R121: =sG_T1(J121)/1000 -> 1.809002322
J122: 6.3 | K122: 4.103122814 | L122: =rhol_t1(J122) -> 887.3139452 | M122: =rhog_T1(J122) -> 119.5697815 | O122: =HL_t1(J122)/1000 -> 215.8615995 | P122: =HG_T1(J122)/1000 -> 426.4154391 | Q122: =sl_t1(J122)/1000 -> 1.054933579 | R122: =sG_T1(J122)/1000 -> 1.808385822
J123: 6.4 | K123: =psat_t1(J123)/1000000 -> 4.113546558 | L123: =rhol_t1(J123) -> 886.6349784 | M123: =rhog_T1(J123) -> 119.9610949 | O123: =HL_t1(J123)/1000 -> 216.1221998 | P123: =HG_T1(J123)/1000 -> 426.3298315 | Q123: =sl_t1(J123)/1000 -> 1.055823884 | R123: =sG_T1(J123)/1000 -> 1.80776815
J124: 6.5 | K124: 4.123990057 | L124: =rhol_t1(J124) -> 885.9544954 | M124: =rhog_T1(J124) -> 120.3539449 | O124: =HL_t1(J124)/1000 -> 216.3831137 | P124: =HG_T1(J124)/1000 -> 426.2437122 | Q124: =sl_t1(J124)/1000 -> 1.056714881 | R124: =sG_T1(J124)/1000 -> 1.807149296
J125: 6.6 | K125: 4.134453343 | L125: =rhol_t1(J125) -> 885.2724861 | M125: =rhog_T1(J125) -> 120.7483416 | O125: =HL_t1(J125)/1000 -> 216.6443431 | P125: =HG_T1(J125)/1000 -> 426.157078 | Q125: =sl_t1(J125)/1000 -> 1.057606576 | R125: =sG_T1(J125)/1000 -> 1.806529251
J126: 6.7 | K126: 4.144936444 | L126: =rhol_t1(J126) -> 884.5889404 | M126: =rhog_T1(J126) -> 121.1442949 | O126: =HL_t1(J126)/1000 -> 216.9058902 | P126: =HG_T1(J126)/1000 -> 426.0699258 | Q126: =sl_t1(J126)/1000 -> 1.058498976 | R126: =sG_T1(J126)/1000 -> 1.805908004
J127: 6.8 | K127: 4.155439389 | L127: =rhol_t1(J127) -> 883.9038479 | M127: =rhog_T1(J127) -> 121.541815 | O127: =HL_t1(J127)/1000 -> 217.167757 | P127: =HG_T1(J127)/1000 -> 425.9822525 | Q127: =sl_t1(J127)/1000 -> 1.059392088 | R127: =sG_T1(J127)/1000 -> 1.805285545
J128: 6.9 | K128: 4.165962209 | L128: =rhol_t1(J128) -> 883.2171984 | M128: =rhog_T1(J128) -> 121.9409123 | O128: =HL_t1(J128)/1000 -> 217.4299457 | P128: =HG_T1(J128)/1000 -> 425.894055 | Q128: =sl_t1(J128)/1000 -> 1.060285917 | R128: =sG_T1(J128)/1000 -> 1.804661865
J129: 7 | K129: 4.176504932 | L129: =rhol_t1(J129) -> 882.5289813 | M129: =rhog_T1(J129) -> 122.3415972 | O129: =HL_t1(J129)/1000 -> 217.6924583 | P129: =HG_T1(J129)/1000 -> 425.8053299 | Q129: =sl_t1(J129)/1000 -> 1.061180471 | R129: =sG_T1(J129)/1000 -> 1.804036952
J130: 7.1 | K130: 4.18706759 | L130: =rhol_t1(J130) -> 881.839186 | M130: =rhog_T1(J130) -> 122.7438801 | O130: =HL_t1(J130)/1000 -> 217.955297 | P130: =HG_T1(J130)/1000 -> 425.716074 | Q130: =sl_t1(J130)/1000 -> 1.062075756 | R130: =sG_T1(J130)/1000 -> 1.803410796
J131: 7.2 | K131: 4.197650211 | L131: =rhol_t1(J131) -> 881.1478019 | M131: =rhog_T1(J131) -> 123.1477716 | O131: =HL_t1(J131)/1000 -> 218.2184641 | P131: =HG_T1(J131)/1000 -> 425.626284 | Q131: =sl_t1(J131)/1000 -> 1.06297178 | R131: =sG_T1(J131)/1000 -> 1.802783387
J132: 7.3 | K132: 4.208252827 | L132: =rhol_t1(J132) -> 880.454818 | M132: =rhog_T1(J132) -> 123.5532826 | O132: =HL_t1(J132)/1000 -> 218.4819616 | P132: =HG_T1(J132)/1000 -> 425.5359567 | Q132: =sl_t1(J132)/1000 -> 1.063868548 | R132: =sG_T1(J132)/1000 -> 1.802154715
J133: 7.4 | K133: 4.218875466 | L133: =rhol_t1(J133) -> 879.7602235 | M133: =rhog_T1(J133) -> 123.9604239 | O133: =HL_t1(J133)/1000 -> 218.7457919 | P133: =HG_T1(J133)/1000 -> 425.4450886 | Q133: =sl_t1(J133)/1000 -> 1.064766069 | R133: =sG_T1(J133)/1000 -> 1.801524768
J134: 7.5 | K134: 4.229518159 | L134: =rhol_t1(J134) -> 879.0640073 | M134: =rhog_T1(J134) -> 124.3692064 | O134: =HL_t1(J134)/1000 -> 219.0099572 | P134: =HG_T1(J134)/1000 -> 425.3536764 | Q134: =sl_t1(J134)/1000 -> 1.065664349 | R134: =sG_T1(J134)/1000 -> 1.800893535
J135: 7.6 | K135: 4.240180937 | L135: =rhol_t1(J135) -> 878.366158 | M135: =rhog_T1(J135) -> 124.7796412 | O135: =HL_t1(J135)/1000 -> 219.2744597 | P135: =HG_T1(J135)/1000 -> 425.2617166 | Q135: =sl_t1(J135)/1000 -> 1.066563395 | R135: =sG_T1(J135)/1000 -> 1.800261007
J136: 7.7 | K136: 4.250863829 | L136: =rhol_t1(J136) -> 877.6666646 | M136: =rhog_T1(J136) -> 125.1917397 | O136: =HL_t1(J136)/1000 -> 219.5393017 | P136: =HG_T1(J136)/1000 -> 425.1692057 | Q136: =sl_t1(J136)/1000 -> 1.067463216 | R136: =sG_T1(J136)/1000 -> 1.799627171
J137: 7.8 | K137: 4.261566867 | L137: =rhol_t1(J137) -> 876.9655154 | M137: =rhog_T1(J137) -> 125.605513 | O137: =HL_t1(J137)/1000 -> 219.8044857 | P137: =HG_T1(J137)/1000 -> 425.0761403 | Q137: =sl_t1(J137)/1000 -> 1.068363817 | R137: =sG_T1(J137)/1000 -> 1.798992017
J138: 7.9 | K138: 4.27229008 | L138: =rhol_t1(J138) -> 876.2626989 | M138: =rhog_T1(J138) -> 126.0209728 | O138: =HL_t1(J138)/1000 -> 220.0700139 | P138: =HG_T1(J138)/1000 -> 424.9825168 | Q138: =sl_t1(J138)/1000 -> 1.069265206 | R138: =sG_T1(J138)/1000 -> 1.798355532
J139: 8 | K139: 4.2830335 | L139: =rhol_t1(J139) -> 875.5582034 | M139: =rhog_T1(J139) -> 126.4381306 | O139: =HL_t1(J139)/1000 -> 220.3358888 | P139: =HG_T1(J139)/1000 -> 424.8883316 | Q139: =sl_t1(J139)/1000 -> 1.070167391 | R139: =sG_T1(J139)/1000 -> 1.797717707
J140: 8.1 | K140: 4.293797157 | L140: =rhol_t1(J140) -> 874.8520171 | M140: =rhog_T1(J140) -> 126.8569981 | O140: =HL_t1(J140)/1000 -> 220.6021127 | P140: =HG_T1(J140)/1000 -> 424.7935811 | Q140: =sl_t1(J140)/1000 -> 1.07107038 | R140: =sG_T1(J140)/1000 -> 1.797078528
J141: 8.2 | K141: 4.304581082 | L141: =rhol_t1(J141) -> 874.1441279 | M141: =rhog_T1(J141) -> 127.2775872 | O141: =HL_t1(J141)/1000 -> 220.8686881 | P141: =HG_T1(J141)/1000 -> 424.6982616 | Q141: =sl_t1(J141)/1000 -> 1.07197418 | R141: =sG_T1(J141)/1000 -> 1.796437985
J142: 8.3 | K142: 4.315385307 | L142: =rhol_t1(J142) -> 873.4345238 | M142: =rhog_T1(J142) -> 127.69991 | O142: =HL_t1(J142)/1000 -> 221.1356174 | P142: =HG_T1(J142)/1000 -> 424.6023695 | Q142: =sl_t1(J142)/1000 -> 1.072878799 | R142: =sG_T1(J142)/1000 -> 1.795796065
J143: 8.4 | K143: 4.326209861 | L143: =rhol_t1(J143) -> 872.7231925 | M143: =rhog_T1(J143) -> 128.1239786 | O143: =HL_t1(J143)/1000 -> 221.4029032 | P143: =HG_T1(J143)/1000 -> 424.5059009 | Q143: =sl_t1(J143)/1000 -> 1.073784244 | R143: =sG_T1(J143)/1000 -> 1.795152758
J144: 8.5 | K144: 4.337054777 | L144: =rhol_t1(J144) -> 872.0101216 | M144: =rhog_T1(J144) -> 128.5498052 | O144: =HL_t1(J144)/1000 -> 221.670548 | P144: =HG_T1(J144)/1000 -> 424.408852 | Q144: =sl_t1(J144)/1000 -> 1.074690525 | R144: =sG_T1(J144)/1000 -> 1.794508049
J145: 8.6 | K145: 4.347920086 | L145: =rhol_t1(J145) -> 871.2952986 | M145: =rhog_T1(J145) -> 128.9774023 | O145: =HL_t1(J145)/1000 -> 221.9385543 | P145: =HG_T1(J145)/1000 -> 424.3112191 | Q145: =sl_t1(J145)/1000 -> 1.075597648 | R145: =sG_T1(J145)/1000 -> 1.793861929
J146: 8.7 | K146: 4.358805818 | L146: =rhol_t1(J146) -> 870.5787107 | M146: =rhog_T1(J146) -> 129.4067824 | O146: =HL_t1(J146)/1000 -> 222.2069248 | P146: =HG_T1(J146)/1000 -> 424.2129983 | Q146: =sl_t1(J146)/1000 -> 1.076505622 | R146: =sG_T1(J146)/1000 -> 1.793214383
J147: 8.8 | K147: 4.369712007 | L147: =rhol_t1(J147) -> 869.8603452 | M147: =rhog_T1(J147) -> 129.8379583 | O147: =HL_t1(J147)/1000 -> 222.475662 | P147: =HG_T1(J147)/1000 -> 424.1141856 | Q147: =sl_t1(J147)/1000 -> 1.077414455 | R147: =sG_T1(J147)/1000 -> 1.792565399
J148: 8.9 | K148: 4.380638682 | L148: =rhol_t1(J148) -> 869.140189 | M148: =rhog_T1(J148) -> 130.2709429 | O148: =HL_t1(J148)/1000 -> 222.7447686 | P148: =HG_T1(J148)/1000 -> 424.0147771 | Q148: =sl_t1(J148)/1000 -> 1.078324155 | R148: =sG_T1(J148)/1000 -> 1.791914966
J149: 9 | K149: 4.391585876 | L149: =rhol_t1(J149) -> 868.4182291 | M149: =rhog_T1(J149) -> 130.7057491 | O149: =HL_t1(J149)/1000 -> 223.0142473 | P149: =HG_T1(J149)/1000 -> 423.9147687 | Q149: =sl_t1(J149)/1000 -> 1.079234731 | R149: =sG_T1(J149)/1000 -> 1.791263069
J150: 9.1 | K150: 4.402553621 | L150: =rhol_t1(J150) -> 867.694452 | M150: =rhog_T1(J150) -> 131.1423901 | O150: =HL_t1(J150)/1000 -> 223.2841008 | P150: =HG_T1(J150)/1000 -> 423.8141565 | Q150: =sl_t1(J150)/1000 -> 1.080146192 | R150: =sG_T1(J150)/1000 -> 1.790609697
J151: 9.2 | K151: 4.413541948 | L151: =rhol_t1(J151) -> 866.9688445 | M151: =rhog_T1(J151) -> 131.5808793 | O151: =HL_t1(J151)/1000 -> 223.5543318 | P151: =HG_T1(J151)/1000 -> 423.7129362 | Q151: =sl_t1(J151)/1000 -> 1.081058546 | R151: =sG_T1(J151)/1000 -> 1.789954836
J152: 9.3 | K152: 4.42455089 | L152: =rhol_t1(J152) -> 866.2413927 | M152: =rhog_T1(J152) -> 132.0212302 | O152: =HL_t1(J152)/1000 -> 223.8249432 | P152: =HG_T1(J152)/1000 -> 423.6111037 | Q152: =sl_t1(J152)/1000 -> 1.081971802 | R152: =sG_T1(J152)/1000 -> 1.789298472
J153: 9.4 | K153: 4.435580479 | L153: =rhol_t1(J153) -> 865.5120831 | M153: =rhog_T1(J153) -> 132.4634564 | O153: =HL_t1(J153)/1000 -> 224.0959377 | P153: =HG_T1(J153)/1000 -> 423.5086549 | Q153: =sl_t1(J153)/1000 -> 1.082885968 | R153: =sG_T1(J153)/1000 -> 1.788640593
J154: 9.5 | K154: 4.446630747 | L154: =rhol_t1(J154) -> 864.7809015 | M154: =rhog_T1(J154) -> 132.9075717 | O154: =HL_t1(J154)/1000 -> 224.3673183 | P154: =HG_T1(J154)/1000 -> 423.4055854 | Q154: =sl_t1(J154)/1000 -> 1.083801054 | R154: =sG_T1(J154)/1000 -> 1.787981185
J155: 9.6 | K155: 4.457701727 | L155: =rhol_t1(J155) -> 864.0478339 | M155: =rhog_T1(J155) -> 133.3535901 | O155: =HL_t1(J155)/1000 -> 224.6390877 | P155: =HG_T1(J155)/1000 -> 423.301891 | Q155: =sl_t1(J155)/1000 -> 1.084717069 | R155: =sG_T1(J155)/1000 -> 1.787320234
J156: 9.7 | K156: 4.46879345 | L156: =rhol_t1(J156) -> 863.312866 | M156: =rhog_T1(J156) -> 133.8015258 | O156: =HL_t1(J156)/1000 -> 224.9112489 | P156: =HG_T1(J156)/1000 -> 423.1975673 | Q156: =sl_t1(J156)/1000 -> 1.085634022 | R156: =sG_T1(J156)/1000 -> 1.786657726
J157: 9.8 | K157: 4.47990595 | L157: =rhol_t1(J157) -> 862.5759834 | M157: =rhog_T1(J157) -> 134.2513931 | O157: =HL_t1(J157)/1000 -> 225.1838049 | P157: =HG_T1(J157)/1000 -> 423.0926099 | Q157: =sl_t1(J157)/1000 -> 1.086551922 | R157: =sG_T1(J157)/1000 -> 1.785993648
J158: 9.9 | K158: 4.491039259 | L158: =rhol_t1(J158) -> 861.8371714 | M158: =rhog_T1(J158) -> 134.7032064 | O158: =HL_t1(J158)/1000 -> 225.4567587 | P158: =HG_T1(J158)/1000 -> 422.9870143 | Q158: =sl_t1(J158)/1000 -> 1.087470779 | R158: =sG_T1(J158)/1000 -> 1.785327985
J159: 10 | K159: 4.502193411 | L159: =rhol_t1(J159) -> 861.0964151 | M159: =rhog_T1(J159) -> 135.1569806 | O159: =HL_t1(J159)/1000 -> 225.7301132 | P159: =HG_T1(J159)/1000 -> 422.8807761 | Q159: =sl_t1(J159)/1000 -> 1.088390602 | R159: =sG_T1(J159)/1000 -> 1.784660722
J160: 10.1 | K160: 4.513368437 | L160: =rhol_t1(J160) -> 860.3536995 | M160: =rhog_T1(J160) -> 135.6127303 | O160: =HL_t1(J160)/1000 -> 226.0038717 | P160: =HG_T1(J160)/1000 -> 422.7738906 | Q160: =sl_t1(J160)/1000 -> 1.089311401 | R160: =sG_T1(J160)/1000 -> 1.783991846
J161: 10.2 | K161: 4.524564372 | L161: =rhol_t1(J161) -> 859.6090095 | M161: =rhog_T1(J161) -> 136.0704708 | O161: =HL_t1(J161)/1000 -> 226.2780371 | P161: =HG_T1(J161)/1000 -> 422.6663532 | Q161: =sl_t1(J161)/1000 -> 1.090233185 | R161: =sG_T1(J161)/1000 -> 1.783321341
J162: 10.3 | K162: 4.535781249 | L162: =rhol_t1(J162) -> 858.8623297 | M162: =rhog_T1(J162) -> 136.5302173 | O162: =HL_t1(J162)/1000 -> 226.5526127 | P162: =HG_T1(J162)/1000 -> 422.5581592 | Q162: =sl_t1(J162)/1000 -> 1.091155966 | R162: =sG_T1(J162)/1000 -> 1.782649192
J163: 10.4 | K163: 4.5470191 | L163: =rhol_t1(J163) -> 858.1136444 | M163: =rhog_T1(J163) -> 136.9919851 | O163: =HL_t1(J163)/1000 -> 226.8276016 | P163: =HG_T1(J163)/1000 -> 422.4493039 | Q163: =sl_t1(J163)/1000 -> 1.092079751 | R163: =sG_T1(J163)/1000 -> 1.781975385
J164: 10.5 | K164: 4.55827796 | L164: =rhol_t1(J164) -> 857.362938 | M164: =rhog_T1(J164) -> 137.4557899 | O164: =HL_t1(J164)/1000 -> 227.1030071 | P164: =HG_T1(J164)/1000 -> 422.3397825 | Q164: =sl_t1(J164)/1000 -> 1.093004553 | R164: =sG_T1(J164)/1000 -> 1.781299904
J165: 10.6 | K165: 4.569557861 | L165: =rhol_t1(J165) -> 856.6101943 | M165: =rhog_T1(J165) -> 137.9216475 | O165: =HL_t1(J165)/1000 -> 227.3788324 | P165: =HG_T1(J165)/1000 -> 422.2295901 | Q165: =sl_t1(J165)/1000 -> 1.093930381 | R165: =sG_T1(J165)/1000 -> 1.780622734
J166: 10.7 | K166: 4.580858838 | L166: =rhol_t1(J166) -> 855.8553972 | M166: =rhog_T1(J166) -> 138.389574 | O166: =HL_t1(J166)/1000 -> 227.6550809 | P166: =HG_T1(J166)/1000 -> 422.1187218 | Q166: =sl_t1(J166)/1000 -> 1.094857246 | R166: =sG_T1(J166)/1000 -> 1.779943859
J167: 10.8 | K167: 4.592180925 | L167: =rhol_t1(J167) -> 855.0985304 | M167: =rhog_T1(J167) -> 138.8595855 | O167: =HL_t1(J167)/1000 -> 227.9317559 | P167: =HG_T1(J167)/1000 -> 422.0071726 | Q167: =sl_t1(J167)/1000 -> 1.095785157 | R167: =sG_T1(J167)/1000 -> 1.779263263
J168: 10.9 | K168: 4.603524156 | L168: =rhol_t1(J168) -> 854.3395771 | M168: =rhog_T1(J168) -> 139.3316986 | O168: =HL_t1(J168)/1000 -> 228.2088608 | P168: =HG_T1(J168)/1000 -> 421.8949375 | Q168: =sl_t1(J168)/1000 -> 1.096714127 | R168: =sG_T1(J168)/1000 -> 1.77858093
J169: 11 | K169: 4.614888564 | L169: =rhol_t1(J169) -> 853.5785207 | M169: =rhog_T1(J169) -> 139.8059299 | O169: =HL_t1(J169)/1000 -> 228.4863991 | P169: =HG_T1(J169)/1000 -> 421.7820113 | Q169: =sl_t1(J169)/1000 -> 1.097644165 | R169: =sG_T1(J169)/1000 -> 1.777896844
J170: 11.1 | K170: 4.626274183 | L170: =rhol_t1(J170) -> 852.8153439 | M170: =rhog_T1(J170) -> 140.2822963 | O170: =HL_t1(J170)/1000 -> 228.7643743 | P170: =HG_T1(J170)/1000 -> 421.6683889 | Q170: =sl_t1(J170)/1000 -> 1.098575284 | R170: =sG_T1(J170)/1000 -> 1.777210988
J171: 11.2 | K171: 4.63768105 | L171: =rhol_t1(J171) -> 852.0500296 | M171: =rhog_T1(J171) -> 140.7608149 | O171: =HL_t1(J171)/1000 -> 229.0427898 | P171: =HG_T1(J171)/1000 -> 421.554065 | Q171: =sl_t1(J171)/1000 -> 1.099507493 | R171: =sG_T1(J171)/1000 -> 1.776523346
J172: 11.3 | K172: 4.649109197 | L172: =rhol_t1(J172) -> 851.2825602 | M172: =rhog_T1(J172) -> 141.2415029 | O172: =HL_t1(J172)/1000 -> 229.3216494 | P172: =HG_T1(J172)/1000 -> 421.4390343 | Q172: =sl_t1(J172)/1000 -> 1.100440804 | R172: =sG_T1(J172)/1000 -> 1.775833901
J173: 11.4 | K173: 4.66055866 | L173: =rhol_t1(J173) -> 850.5129181 | M173: =rhog_T1(J173) -> 141.724378 | O173: =HL_t1(J173)/1000 -> 229.6009566 | P173: =HG_T1(J173)/1000 -> 421.3232914 | Q173: =sl_t1(J173)/1000 -> 1.101375229 | R173: =sG_T1(J173)/1000 -> 1.775142636
J174: 11.5 | K174: 4.672029473 | L174: =rhol_t1(J174) -> 849.7410852 | M174: =rhog_T1(J174) -> 142.2094579 | O174: =HL_t1(J174)/1000 -> 229.8807151 | P174: =HG_T1(J174)/1000 -> 421.2068309 | Q174: =sl_t1(J174)/1000 -> 1.10231078 | R174: =sG_T1(J174)/1000 -> 1.774449533
J175: 11.6 | K175: 4.683521672 | L175: =rhol_t1(J175) -> 848.9670433 | M175: =rhog_T1(J175) -> 142.6967607 | O175: =HL_t1(J175)/1000 -> 230.1609287 | P175: =HG_T1(J175)/1000 -> 421.0896472 | Q175: =sl_t1(J175)/1000 -> 1.103247467 | R175: =sG_T1(J175)/1000 -> 1.773754575
J176: 11.7 | K176: 4.695035291 | L176: =rhol_t1(J176) -> 848.1907739 | M176: =rhog_T1(J176) -> 143.1863046 | O176: =HL_t1(J176)/1000 -> 230.4416011 | P176: =HG_T1(J176)/1000 -> 420.9717348 | Q176: =sl_t1(J176)/1000 -> 1.104185304 | R176: =sG_T1(J176)/1000 -> 1.773057744
J177: 11.8 | K177: 4.706570366 | L177: =rhol_t1(J177) -> 847.4122585 | M177: =rhog_T1(J177) -> 143.6781081 | O177: =HL_t1(J177)/1000 -> 230.7227362 | P177: =HG_T1(J177)/1000 -> 420.8530879 | Q177: =sl_t1(J177)/1000 -> 1.105124302 | R177: =sG_T1(J177)/1000 -> 1.772359021
J178: 11.9 | K178: 4.718126932 | L178: =rhol_t1(J178) -> 846.6314779 | M178: =rhog_T1(J178) -> 144.1721901 | O178: =HL_t1(J178)/1000 -> 231.0043378 | P178: =HG_T1(J178)/1000 -> 420.7337009 | Q178: =sl_t1(J178)/1000 -> 1.106064473 | R178: =sG_T1(J178)/1000 -> 1.77165839
J179: 12 | K179: 4.729705025 | L179: =rhol_t1(J179) -> 845.848413 | M179: =rhog_T1(J179) -> 144.6685695 | O179: =HL_t1(J179)/1000 -> 231.2864099 | P179: =HG_T1(J179)/1000 -> 420.6135678 | Q179: =sl_t1(J179)/1000 -> 1.10700583 | R179: =sG_T1(J179)/1000 -> 1.770955831
J180: 12.1 | K180: 4.74130468 | L180: =rhol_t1(J180) -> 845.0630442 | M180: =rhog_T1(J180) -> 145.1672655 | O180: =HL_t1(J180)/1000 -> 231.5689565 | P180: =HG_T1(J180)/1000 -> 420.4926829 | Q180: =sl_t1(J180)/1000 -> 1.107948385 | R180: =sG_T1(J180)/1000 -> 1.770251325
J181: 12.2 | K181: 4.752925934 | L181: =rhol_t1(J181) -> 844.2753519 | M181: =rhog_T1(J181) -> 145.6682979 | O181: =HL_t1(J181)/1000 -> 231.8519816 | P181: =HG_T1(J181)/1000 -> 420.37104 | Q181: =sl_t1(J181)/1000 -> 1.108892152 | R181: =sG_T1(J181)/1000 -> 1.769544854
J182: 12.3 | K182: 4.764568822 | L182: =rhol_t1(J182) -> 843.4853159 | M182: =rhog_T1(J182) -> 146.1716864 | O182: =HL_t1(J182)/1000 -> 232.1354894 | P182: =HG_T1(J182)/1000 -> 420.2486332 | Q182: =sl_t1(J182)/1000 -> 1.109837142 | R182: =sG_T1(J182)/1000 -> 1.768836397
J183: 12.4 | K183: 4.776233381 | L183: =rhol_t1(J183) -> 842.692916 | M183: =rhog_T1(J183) -> 146.677451 | O183: =HL_t1(J183)/1000 -> 232.419484 | P183: =HG_T1(J183)/1000 -> 420.1254562 | Q183: =sl_t1(J183)/1000 -> 1.11078337 | R183: =sG_T1(J183)/1000 -> 1.768125937
J184: 12.5 | K184: 4.787919646 | L184: =rhol_t1(J184) -> 841.8981316 | M184: =rhog_T1(J184) -> 147.1856122 | O184: =HL_t1(J184)/1000 -> 232.7039696 | P184: =HG_T1(J184)/1000 -> 420.0015029 | Q184: =sl_t1(J184)/1000 -> 1.111730849 | R184: =sG_T1(J184)/1000 -> 1.767413452
J185: 12.6 | K185: 4.799627655 | L185: =rhol_t1(J185) -> 841.1009417 | M185: =rhog_T1(J185) -> 147.6961907 | O185: =HL_t1(J185)/1000 -> 232.9889505 | P185: =HG_T1(J185)/1000 -> 419.8767669 | Q185: =sl_t1(J185)/1000 -> 1.112679592 | R185: =sG_T1(J185)/1000 -> 1.766698922
J186: 12.7 | K186: 4.811357444 | L186: =rhol_t1(J186) -> 840.3013252 | M186: =rhog_T1(J186) -> 148.2092074 | O186: =HL_t1(J186)/1000 -> 233.274431 | P186: =HG_T1(J186)/1000 -> 419.7512419 | Q186: =sl_t1(J186)/1000 -> 1.113629612 | R186: =sG_T1(J186)/1000 -> 1.765982329
J187: 12.8 | K187: =psat_t1(J187)/1000000 -> 4.823109049 | L187: =rhol_t1(J187) -> 839.4992605 | M187: =rhog_T1(J187) -> 148.7246835 | O187: =HL_t1(J187)/1000 -> 233.5604155 | P187: =HG_T1(J187)/1000 -> 419.6249212 | Q187: =sl_t1(J187)/1000 -> 1.114580925 | R187: =sG_T1(J187)/1000 -> 1.765263649
J188: 12.9 | K188: 4.834882509 | L188: =rhol_t1(J188) -> 838.6947259 | M188: =rhog_T1(J188) -> 149.2426407 | O188: =HL_t1(J188)/1000 -> 233.8469086 | P188: =HG_T1(J188)/1000 -> 419.4977984 | Q188: =sl_t1(J188)/1000 -> 1.115533543 | R188: =sG_T1(J188)/1000 -> 1.764542864
J189: 13 | K189: 4.846677859 | L189: =rhol_t1(J189) -> 837.8876992 | M189: =rhog_T1(J189) -> 149.7631008 | O189: =HL_t1(J189)/1000 -> 234.1339146 | P189: =HG_T1(J189)/1000 -> 419.3698667 | Q189: =sl_t1(J189)/1000 -> 1.116487481 | R189: =sG_T1(J189)/1000 -> 1.763819951
J190: 13.1 | K190: 4.858495138 | L190: =rhol_t1(J190) -> 837.078158 | M190: =rhog_T1(J190) -> 150.286086 | O190: =HL_t1(J190)/1000 -> 234.4214383 | P190: =HG_T1(J190)/1000 -> 419.2411193 | Q190: =sl_t1(J190)/1000 -> 1.117442754 | R190: =sG_T1(J190)/1000 -> 1.763094888
J191: 13.2 | K191: 4.870334383 | L191: =rhol_t1(J191) -> 836.2660795 | M191: =rhog_T1(J191) -> 150.8116189 | O191: =HL_t1(J191)/1000 -> 234.7094842 | P191: =HG_T1(J191)/1000 -> 419.1115495 | Q191: =sl_t1(J191)/1000 -> 1.118399376 | R191: =sG_T1(J191)/1000 -> 1.762367655
J192: 13.3 | K192: 4.882195631 | L192: =rhol_t1(J192) -> 835.4514406 | M192: =rhog_T1(J192) -> 151.3397223 | O192: =HL_t1(J192)/1000 -> 234.9980571 | P192: =HG_T1(J192)/1000 -> 418.9811501 | Q192: =sl_t1(J192)/1000 -> 1.119357363 | R192: =sG_T1(J192)/1000 -> 1.761638229
J193: 13.4 | K193: 4.894078921 | L193: =rhol_t1(J193) -> 834.6342179 | M193: =rhog_T1(J193) -> 151.8704194 | O193: =HL_t1(J193)/1000 -> 235.2871617 | P193: =HG_T1(J193)/1000 -> 418.8499141 | Q193: =sl_t1(J193)/1000 -> 1.120316729 | R193: =sG_T1(J193)/1000 -> 1.760906587
J194: 13.5 | K194: 4.90598429 | L194: =rhol_t1(J194) -> 833.8143875 | M194: =rhog_T1(J194) -> 152.4037336 | O194: =HL_t1(J194)/1000 -> 235.576803 | P194: =HG_T1(J194)/1000 -> 418.7178344 | Q194: =sl_t1(J194)/1000 -> 1.12127749 | R194: =sG_T1(J194)/1000 -> 1.760172706
J195: 13.6 | K195: 4.917911776 | L195: =rhol_t1(J195) -> 832.9919253 | M195: =rhog_T1(J195) -> 152.939689 | O195: =HL_t1(J195)/1000 -> 235.8669858 | P195: =HG_T1(J195)/1000 -> 418.5849037 | Q195: =sl_t1(J195)/1000 -> 1.122239661 | R195: =sG_T1(J195)/1000 -> 1.759436564
J196: 13.7 | K196: 4.929861419 | L196: =rhol_t1(J196) -> 832.1668067 | M196: =rhog_T1(J196) -> 153.4783098 | O196: =HL_t1(J196)/1000 -> 236.1577151 | P196: =HG_T1(J196)/1000 -> 418.4511144 | Q196: =sl_t1(J196)/1000 -> 1.123203259 | R196: =sG_T1(J196)/1000 -> 1.758698137
J197: 13.8 | K197: 4.941833256 | L197: =rhol_t1(J197) -> 831.3390069 | M197: =rhog_T1(J197) -> 154.0196206 | O197: =HL_t1(J197)/1000 -> 236.4489961 | P197: =HG_T1(J197)/1000 -> 418.3164593 | Q197: =sl_t1(J197)/1000 -> 1.124168298 | R197: =sG_T1(J197)/1000 -> 1.757957401
J198: 13.9 | K198: 4.953827327 | L198: =rhol_t1(J198) -> 830.5085006 | M198: =rhog_T1(J198) -> 154.5636463 | O198: =HL_t1(J198)/1000 -> 236.7408339 | P198: =HG_T1(J198)/1000 -> 418.1809305 | Q198: =sl_t1(J198)/1000 -> 1.125134797 | R198: =sG_T1(J198)/1000 -> 1.757214331
J199: 14 | K199: 4.96584367 | L199: =rhol_t1(J199) -> 829.6752621 | M199: =rhog_T1(J199) -> 155.1104123 | O199: =HL_t1(J199)/1000 -> 237.0332336 | P199: =HG_T1(J199)/1000 -> 418.0445204 | Q199: =sl_t1(J199)/1000 -> 1.126102771 | R199: =sG_T1(J199)/1000 -> 1.756468904
J200: 14.1 | K200: 4.977882325 | L200: =rhol_t1(J200) -> 828.8392653 | M200: =rhog_T1(J200) -> 155.6599445 | O200: =HL_t1(J200)/1000 -> 237.3262006 | P200: =HG_T1(J200)/1000 -> 417.9072212 | Q200: =sl_t1(J200)/1000 -> 1.127072236 | R200: =sG_T1(J200)/1000 -> 1.755721094
J201: 14.2 | K201: 4.98994333 | L201: =rhol_t1(J201) -> 828.0004839 | M201: =rhog_T1(J201) -> 156.2122689 | O201: =HL_t1(J201)/1000 -> 237.6197403 | P201: =HG_T1(J201)/1000 -> 417.7690249 | Q201: =sl_t1(J201)/1000 -> 1.128043211 | R201: =sG_T1(J201)/1000 -> 1.754970876
J202: 14.3 | K202: 5.002026726 | L202: =rhol_t1(J202) -> 827.1588908 | M202: =rhog_T1(J202) -> 156.7674121 | O202: =HL_t1(J202)/1000 -> 237.9138582 | P202: =HG_T1(J202)/1000 -> 417.6299233 | Q202: =sl_t1(J202)/1000 -> 1.129015712 | R202: =sG_T1(J202)/1000 -> 1.754218225
J203: 14.4 | K203: 5.014132553 | L203: =rhol_t1(J203) -> 826.3144589 | M203: =rhog_T1(J203) -> 157.3254011 | O203: =HL_t1(J203)/1000 -> 238.2085597 | P203: =HG_T1(J203)/1000 -> 417.4899083 | Q203: =sl_t1(J203)/1000 -> 1.129989758 | R203: =sG_T1(J203)/1000 -> 1.753463113
J204: 14.5 | K204: 5.026260849 | L204: =rhol_t1(J204) -> 825.4671604 | M204: =rhog_T1(J204) -> 157.8862634 | O204: =HL_t1(J204)/1000 -> 238.5038505 | P204: =HG_T1(J204)/1000 -> 417.3489716 | Q204: =sl_t1(J204)/1000 -> 1.130965365 | R204: =sG_T1(J204)/1000 -> 1.752705515
J205: 14.6 | K205: 5.038411656 | L205: =rhol_t1(J205) -> 824.616967 | M205: =rhog_T1(J205) -> 158.4500267 | O205: =HL_t1(J205)/1000 -> 238.7997363 | P205: =HG_T1(J205)/1000 -> 417.2071045 | Q205: =sl_t1(J205)/1000 -> 1.131942552 | R205: =sG_T1(J205)/1000 -> 1.751945403
... 164 more rows
